{"text_format":"1","workbook":"xlsx","n_sheets":13,"sheets":["その１","その２","その２（131条1項の通知なし）","その２（基準日直後の上場・通知あり）","その２（基準日直後の上場・通知なし）","その３","その４","確認書","CSV出力用","特殊ケース","ツール処理シート","補記シート","プルダウン"],"not_rendered":{"charts":0,"images":0,"macros":1,"external_links":0,"defined_names":10,"comments":4,"pivot_tables":0},"unopened":[],"bounds":{"document_bytes":16777216,"sheet_cells":100000,"rows_first":2000,"rows_last":500,"rows_between":2000,"halvings":0,"cell_chars":16384,"cell_head_chars":4096},"cells_cut":0,"cells_raw":0,"read":"whole","date_system":"1900"}

{"sheet":"その１","index":0,"n_rows":64,"n_cols":36,"rows_kept":64,"cut":false,"hidden":false,"merged":[[27,0,28,4],[27,5,28,17],[10,0,10,35],[25,0,26,4],[25,5,26,17],[25,18,26,22],[25,23,26,35],[20,0,20,4],[20,5,20,35],[21,0,22,4],[21,5,22,35],[23,0,24,4],[23,5,24,35],[63,0,66,35],[35,0,36,17],[35,18,36,35],[57,0,59,35],[3,18,3,22],[3,23,3,35],[45,0,45,14],[45,15,45,35],[46,0,46,14],[5,18,5,22],[7,18,7,22],[6,18,6,22],[5,23,5,35],[6,23,6,35],[7,23,7,35],[16,0,16,35]]}
[null,null,null,null,null,null,null,null,null,null,null,null,null,null,null,null,null,null,null,null,null,null,null,null,null,null,null,null,null,null,null,null,null,null,null,"ST04-02"]
[null,null,null,null,null,null,null,null,null,null,null,null,null,null,null,null,null,null,null,null,null,null,null,null,null,null,null,null,null,null,null,null,null,null,null,"（2023年5月22日版）"]
[]
["株式会社証券保管振替機構　御中",null,null,null,null,null,null,null,null,null,null,null,null,null,null,null,null,null,"提出日"]
[]
[null,null,null,null,null,null,null,null,null,null,null,null,null,null,null,null,null,null,"会社名"]
[null,null,null,null,null,null,null,null,null,null,null,null,null,null,null,null,null,null,"代表者役職名"]
[null,null,null,null,null,null,null,null,null,null,null,null,null,null,null,null,null,null,"代表者氏名"]
[]
[]
["株式等振替制度参加に係る届出書（その１）\n（株式等振替制度＜投資口＞用）"]
[]
[]
["株式等振替制度に参加することに伴い、下記のとおり届出いたします。"]
[]
[]
["記"]
[]
[]
["１.登記上の商号、本店所在地並びに代表者の役職及び氏名など"]
["（商号フリガナ）"]
["商号"]
[]
["本店所在地"]
[]
["代表者役職名",null,null,null,null,null,null,null,null,null,null,null,null,null,null,null,null,null,"代表者氏名"]
[]
["法人番号"]
[]
[]
[]
[]
[]
[]
["２.同意しようとする投資口の内容"]
["銘柄名称"]
[]
[]
[]
[]
[]
[]
[]
[]
["３.口座情報"]
["口座の種類",null,null,null,null,null,null,null,null,null,null,null,null,null,null,"加入者口座コード"]
["調整投資口数（発行者分）の記録先口座"]
[]
[null,null,null,null,null,null,null,null,null,null,null,null,null,null,null,null,null,null,null,null,null,null,null,null,null,null,null,null,null,null,null,null,null,null,null,"以　上"]
[]
[]
[]
[]
[]
[]
[]
[]
[]
[]
[]
[]
[]
[]
["・当機構は、本書に記載された個人情報を、「社債、株式等の振替に関する法律」に基づき主務大臣から認可を受けた業務を円滑に遂行す\n　るため、利用させていただきます。\n・当機構の取り扱う個人情報、当機構の個人情報保護方針など当機構の個人情報保護に関する事項は、当機構ホームページに掲載されてお\n　りますので、適宜御参照ください。"]

{"sheet":"その２","index":1,"n_rows":62,"n_cols":36,"rows_kept":62,"cut":false,"hidden":false,"merged":[[7,18,7,22],[7,23,7,35],[10,0,10,35],[16,0,16,35],[3,18,3,22],[3,23,3,35],[5,18,5,22],[5,23,5,35],[6,18,6,22],[6,23,6,35],[52,34,53,35],[28,0,29,17],[28,18,29,35],[20,0,21,17],[20,18,21,35],[22,0,23,17],[22,18,23,35],[24,0,25,17],[24,18,25,35],[26,0,27,17],[26,18,27,35],[46,0,47,17],[44,0,45,17],[36,18,36,20],[44,18,45,35],[36,21,36,35],[61,0,64,35],[50,0,51,17],[46,18,47,20],[46,21,47,26],[46,27,47,29],[46,30,47,35],[50,18,51,20],[50,21,51,26],[50,27,51,29],[54,0,55,17],[54,18,55,35],[56,0,57,17],[56,18,57,35],[52,0,53,17],[52,18,53,33],[50,30,51,35],[48,0,49,17],[48,18,49,35],[35,0,39,17],[35,18,35,20],[35,21,35,35],[37,18,37,20],[37,21,37,35],[38,18,38,20],[38,21,38,35],[39,18,39,20],[39,21,39,35]]}
[null,null,null,null,null,null,null,null,null,null,null,null,null,null,null,null,null,null,null,null,null,null,null,null,null,null,null,null,null,null,null,null,null,null,null,"ST04-02"]
[null,null,null,null,null,null,null,null,null,null,null,null,null,null,null,null,null,null,null,null,null,null,null,null,null,null,null,null,null,null,null,null,null,null,null,{"$f":"その１!AJ2","v":"（2023年5月22日版）"}]
[]
["株式会社証券保管振替機構　御中",null,null,null,null,null,null,null,null,null,null,null,null,null,null,null,null,null,"提出日",null,null,null,null,{"$f":"IF(その１!$X$4=\"\",\"\",その１!$X$4)","v":""}]
[]
[null,null,null,null,null,null,null,null,null,null,null,null,null,null,null,null,null,null,"会社名",null,null,null,null,{"$f":"IF(その１!$X$6=\"\",\"\",その１!$X$6)","v":""}]
[null,null,null,null,null,null,null,null,null,null,null,null,null,null,null,null,null,null,"代表者役職名",null,null,null,null,{"$f":"IF(その１!$X$7=\"\",\"\",その１!$X$7)","v":""}]
[null,null,null,null,null,null,null,null,null,null,null,null,null,null,null,null,null,null,"代表者氏名",null,null,null,null,{"$f":"IF(その１!$X$8=\"\",\"\",その１!$X$8)","v":""}]
[]
[]
["株式等振替制度参加に係る届出書（その２）\n（株式等振替制度＜投資口＞用）"]
[]
[]
["株式等振替制度に参加することに伴い、下記のとおり届出いたします。"]
[]
[]
["記"]
[]
[]
["１.取扱開始に係る日程（注１）"]
["上場承認日（注２）\n（振替法第228条第1項において準用する第131条第1項の通知日）"]
[]
["事務上の口座通知取次ぎ受付締切日\n（取扱開始日）"]
[]
["一定の日\n（振替法第228条第1項において準用する第131条第1項第1号の一定の日）"]
[]
["新規記録日"]
[]
["上場日"]
[]
["（注１）新設合併に伴うテクニカル上場銘柄については、記載不要です。"]
["（注２）TOKYO PRO Marketに係る発行者については、東京証券取引所による上場申請の公表日を記載してください。"]
[]
[]
["２.上場取引所"]
["上場する金融商品取引所（注３）",null,null,null,null,null,null,null,null,null,null,null,null,null,null,null,null,null,null,null,null,"東京証券取引所"]
[null,null,null,null,null,null,null,null,null,null,null,null,null,null,null,null,null,null,null,null,null,"東京証券取引所（TOKYO PRO Market）"]
[null,null,null,null,null,null,null,null,null,null,null,null,null,null,null,null,null,null,null,null,null,"名古屋証券取引所"]
[null,null,null,null,null,null,null,null,null,null,null,null,null,null,null,null,null,null,null,null,null,"福岡証券取引所"]
[null,null,null,null,null,null,null,null,null,null,null,null,null,null,null,null,null,null,null,null,null,"札幌証券取引所"]
["（注３）上場する金融商品取引所をすべて選択してください。"]
[]
[]
["３.会社・銘柄情報"]
["営業期間"]
[]
["決算期（注４）",null,null,null,null,null,null,null,null,null,null,null,null,null,null,null,null,null,"①",null,null,null,null,null,null,null,null,"②"]
[]
["規約に定める投資主総会に係る基準日"]
[]
["規約に定める分配金の支払いに係る基準日",null,null,null,null,null,null,null,null,null,null,null,null,null,null,null,null,null,"①",null,null,null,null,null,null,null,null,"②"]
[]
["金融商品取引所における売買単位",null,null,null,null,null,null,null,null,null,null,null,null,null,null,null,null,null,null,null,null,null,null,null,null,null,null,null,null,null,null,null,null,null,"口"]
[]
["投資主名簿管理人"]
[]
["特別口座を開設する口座管理機関"]
[]
["（注４）営業期間が１年（決算期が年１回）の場合、②には中間決算期を記載してください。"]
[null,null,null,null,null,null,null,null,null,null,null,null,null,null,null,null,null,null,null,null,null,null,null,null,null,null,null,null,null,null,null,null,null,null,null,"以　上"]
[]
["・当機構は、本書に記載された個人情報を、「社債、株式等の振替に関する法律」に基づき主務大臣から認可を受けた業務を円滑に遂行す\n　るため、利用させていただきます。\n・当機構の取り扱う個人情報、当機構の個人情報保護方針など当機構の個人情報保護に関する事項は、当機構ホームページに掲載されてお\n　りますので、適宜御参照ください。"]

{"sheet":"その２（131条1項の通知なし）","index":2,"n_rows":62,"n_cols":36,"rows_kept":62,"cut":false,"hidden":true,"merged":[[61,0,64,35],[52,0,53,17],[52,18,53,33],[52,34,53,35],[54,0,55,17],[54,18,55,35],[56,0,57,17],[56,18,57,35],[48,0,49,17],[48,18,49,35],[50,0,51,17],[50,18,51,20],[50,21,51,26],[50,27,51,29],[50,30,51,35],[44,0,45,17],[44,18,45,35],[46,0,47,17],[46,18,47,20],[46,21,47,26],[46,27,47,29],[46,30,47,35],[28,0,29,17],[28,18,29,35],[35,0,39,17],[35,18,35,20],[35,21,35,35],[37,18,37,20],[37,21,37,35],[38,18,38,20],[38,21,38,35],[39,18,39,20],[39,21,39,35],[36,18,36,20],[36,21,36,35],[22,0,23,17],[22,18,23,35],[24,0,25,17],[24,18,25,35],[26,0,27,17],[26,18,27,35],[7,18,7,22],[7,23,7,35],[10,0,10,35],[16,0,16,35],[20,0,21,17],[20,18,21,35],[3,18,3,22],[3,23,3,35],[5,18,5,22],[5,23,5,35],[6,18,6,22],[6,23,6,35]]}
[null,null,null,null,null,null,null,null,null,null,null,null,null,null,null,null,null,null,null,null,null,null,null,null,null,null,null,null,null,null,null,null,null,null,null,"ST04-02"]
[null,null,null,null,null,null,null,null,null,null,null,null,null,null,null,null,null,null,null,null,null,null,null,null,null,null,null,null,null,null,null,null,null,null,null,{"$f":"その１!AJ2","v":"（2023年5月22日版）"}]
[]
["株式会社証券保管振替機構　御中",null,null,null,null,null,null,null,null,null,null,null,null,null,null,null,null,null,"提出日",null,null,null,null,{"$f":"IF(その１!$X$4=\"\",\"\",その１!$X$4)","v":""}]
[]
[null,null,null,null,null,null,null,null,null,null,null,null,null,null,null,null,null,null,"会社名",null,null,null,null,{"$f":"IF(その１!$X$6=\"\",\"\",その１!$X$6)","v":""}]
[null,null,null,null,null,null,null,null,null,null,null,null,null,null,null,null,null,null,"代表者役職名",null,null,null,null,{"$f":"IF(その１!$X$7=\"\",\"\",その１!$X$7)","v":""}]
[null,null,null,null,null,null,null,null,null,null,null,null,null,null,null,null,null,null,"代表者氏名",null,null,null,null,{"$f":"IF(その１!$X$8=\"\",\"\",その１!$X$8)","v":""}]
[]
[]
["株式等振替制度参加に係る届出書（その２）\n（株式等振替制度＜投資口＞用）"]
[]
[]
["株式等振替制度に参加することに伴い、下記のとおり届出いたします。"]
[]
[]
["記"]
[]
[]
["１.取扱開始に係る日程（注１）"]
["上場承認日（注２）"]
[]
["事務上の口座通知取次ぎ受付締切日\n（取扱開始日）"]
[]
["一定の日\n（振替法第228条第1項において準用する第131条第1項の通知は実施しません）"]
[]
["新規記録日"]
[]
["上場日"]
[]
["（注１）新設合併に伴うテクニカル上場銘柄については、記載不要です。"]
["（注２）TOKYO PRO Marketに係る発行者については、東京証券取引所による上場申請の公表日を記載してください。"]
[]
[]
["２.上場取引所"]
["上場する金融商品取引所（注３）",null,null,null,null,null,null,null,null,null,null,null,null,null,null,null,null,null,null,null,null,"東京証券取引所"]
[null,null,null,null,null,null,null,null,null,null,null,null,null,null,null,null,null,null,null,null,null,"東京証券取引所（TOKYO PRO Market）"]
[null,null,null,null,null,null,null,null,null,null,null,null,null,null,null,null,null,null,null,null,null,"名古屋証券取引所"]
[null,null,null,null,null,null,null,null,null,null,null,null,null,null,null,null,null,null,null,null,null,"福岡証券取引所"]
[null,null,null,null,null,null,null,null,null,null,null,null,null,null,null,null,null,null,null,null,null,"札幌証券取引所"]
["（注３）上場する金融商品取引所をすべて選択してください。"]
[]
[]
["３.会社・銘柄情報"]
["営業期間"]
[]
["決算期（注４）",null,null,null,null,null,null,null,null,null,null,null,null,null,null,null,null,null,"①",null,null,null,null,null,null,null,null,"②"]
[]
["規約に定める投資主総会に係る基準日"]
[]
["規約に定める分配金の支払いに係る基準日",null,null,null,null,null,null,null,null,null,null,null,null,null,null,null,null,null,"①",null,null,null,null,null,null,null,null,"②"]
[]
["金融商品取引所における売買単位",null,null,null,null,null,null,null,null,null,null,null,null,null,null,null,null,null,null,null,null,null,null,null,null,null,null,null,null,null,null,null,null,null,"口"]
[]
["投資主名簿管理人"]
[]
["特別口座を開設する口座管理機関"]
[]
["（注４）営業期間が１年（決算期が年１回）の場合、②には中間決算期を記載してください。"]
[null,null,null,null,null,null,null,null,null,null,null,null,null,null,null,null,null,null,null,null,null,null,null,null,null,null,null,null,null,null,null,null,null,null,null,"以　上"]
[]
["・当機構は、本書に記載された個人情報を、「社債、株式等の振替に関する法律」に基づき主務大臣から認可を受けた業務を円滑に遂行す\n　るため、利用させていただきます。\n・当機構の取り扱う個人情報、当機構の個人情報保護方針など当機構の個人情報保護に関する事項は、当機構ホームページに掲載されてお\n　りますので、適宜御参照ください。"]

{"sheet":"その２（基準日直後の上場・通知あり）","index":3,"n_rows":74,"n_cols":36,"rows_kept":74,"cut":false,"hidden":true,"merged":[[32,0,34,17],[32,18,34,35],[35,0,37,17],[35,18,37,35],[61,0,62,17],[61,18,62,35],[57,0,58,17],[57,18,58,35],[59,0,60,17],[59,18,60,20],[59,21,60,26],[59,27,60,29],[59,30,60,35],[38,0,40,17],[38,18,40,35],[49,0,53,17],[63,0,64,17],[63,18,64,20],[63,21,64,26],[63,27,64,29],[63,30,64,35],[73,0,76,35],[65,0,66,17],[65,18,66,33],[65,34,66,35],[67,0,68,17],[67,18,68,35],[69,0,70,17],[69,18,70,35],[53,18,53,20],[53,21,53,35],[50,18,50,20],[50,21,50,35],[23,0,25,17],[23,18,25,35],[26,0,28,17],[26,18,28,35],[29,0,31,17],[29,18,31,35],[49,18,49,20],[49,21,49,35],[51,18,51,20],[51,21,51,35],[52,18,52,20],[52,21,52,35],[7,18,7,22],[7,23,7,35],[10,0,10,35],[16,0,16,35],[20,0,22,17],[20,18,22,35],[3,18,3,22],[3,23,3,35],[5,18,5,22],[5,23,5,35],[6,18,6,22],[6,23,6,35]]}
[null,null,null,null,null,null,null,null,null,null,null,null,null,null,null,null,null,null,null,null,null,null,null,null,null,null,null,null,null,null,null,null,null,null,null,"ST04-02"]
[null,null,null,null,null,null,null,null,null,null,null,null,null,null,null,null,null,null,null,null,null,null,null,null,null,null,null,null,null,null,null,null,null,null,null,{"$f":"その１!AJ2","v":"（2023年5月22日版）"}]
[]
["株式会社証券保管振替機構　御中",null,null,null,null,null,null,null,null,null,null,null,null,null,null,null,null,null,"提出日",null,null,null,null,{"$f":"IF(その１!$X$4=\"\",\"\",その１!$X$4)","v":""}]
[]
[null,null,null,null,null,null,null,null,null,null,null,null,null,null,null,null,null,null,"会社名",null,null,null,null,{"$f":"IF(その１!$X$6=\"\",\"\",その１!$X$6)","v":""}]
[null,null,null,null,null,null,null,null,null,null,null,null,null,null,null,null,null,null,"代表者役職名",null,null,null,null,{"$f":"IF(その１!$X$7=\"\",\"\",その１!$X$7)","v":""}]
[null,null,null,null,null,null,null,null,null,null,null,null,null,null,null,null,null,null,"代表者氏名",null,null,null,null,{"$f":"IF(その１!$X$8=\"\",\"\",その１!$X$8)","v":""}]
[]
[]
["株式等振替制度参加に係る届出書（その２）\n（株式等振替制度＜投資口＞用）"]
[]
[]
["株式等振替制度に参加することに伴い、下記のとおり届出いたします。"]
[]
[]
["記"]
[]
[]
["１.取扱開始に係る日程（注１）"]
["上場承認日（注２）\n（振替法第228条第1項において準用する第131条第1項の通知日）"]
[]
[]
["事務上の口座通知取次ぎ受付締切日"]
[]
[]
["基準日（注３）"]
[]
[]
["取扱開始日（注４）"]
[]
[]
["一定の日\n（振替法第228条第1項において準用する第131条第1項第1号の一定の日）"]
[]
[]
["新規記録日"]
[]
[]
["上場日"]
[]
[]
["（注１）吸収合併に伴うテクニカル上場の場合は、注３及び注４にかかわらず、当機構の定める標準日程（株式等振替制度に係る業務処理"]
["　　　　要領「別紙２－２－３（上場日の直前に基準日が設定されるケース）」参照。）に基づいた日程を記載してください。"]
["（注２）TOKYO PRO Marketに係る発行者については、東京証券取引所による上場申請の公表日を記載してください。"]
["（注３）上場日の８営業日前の日から２営業日前の日の間に到来する基準日を記載してください。なお、この基準日には、事業年度が１年"]
["　　　　である場合の事業年度の開始日から６か月後の日（中間配当に係る基準日を定めているときを除く。）等を含みます。"]
["（注４）上場日の８営業日前の日から２営業日前の日の間に到来する基準日の翌営業日を記載してください。"]
[]
["２.上場取引所"]
["上場する金融商品取引所（注５）",null,null,null,null,null,null,null,null,null,null,null,null,null,null,null,null,null,null,null,null,"東京証券取引所"]
[null,null,null,null,null,null,null,null,null,null,null,null,null,null,null,null,null,null,null,null,null,"東京証券取引所（TOKYO PRO Market）"]
[null,null,null,null,null,null,null,null,null,null,null,null,null,null,null,null,null,null,null,null,null,"名古屋証券取引所"]
[null,null,null,null,null,null,null,null,null,null,null,null,null,null,null,null,null,null,null,null,null,"福岡証券取引所"]
[null,null,null,null,null,null,null,null,null,null,null,null,null,null,null,null,null,null,null,null,null,"札幌証券取引所"]
["（注５）上場する金融商品取引所をすべて選択してください。"]
[]
["３.会社・銘柄情報"]
["営業期間",null,null,null,null,null,null,null,null,null,null,null,null,null,null,null,null,null,"　"]
[]
["決算期（注６）",null,null,null,null,null,null,null,null,null,null,null,null,null,null,null,null,null,"①",null,null,null,null,null,null,null,null,"②"]
[]
["規約に定める投資主総会に係る基準日"]
[]
["規約に定める分配金の支払いに係る基準日",null,null,null,null,null,null,null,null,null,null,null,null,null,null,null,null,null,"①",null,null,null,null,null,null,null,null,"②"]
[]
["金融商品取引所における売買単位",null,null,null,null,null,null,null,null,null,null,null,null,null,null,null,null,null,null,null,null,null,null,null,null,null,null,null,null,null,null,null,null,null,"口"]
[]
["投資主名簿管理人"]
[]
["特別口座を開設する口座管理機関"]
[]
["（注６）営業期間が１年（決算期が年１回）の場合、②には中間決算期を記載してください。"]
[null,null,null,null,null,null,null,null,null,null,null,null,null,null,null,null,null,null,null,null,null,null,null,null,null,null,null,null,null,null,null,null,null,null,null,"以　上"]
["・当機構は、本書に記載された個人情報を、「社債、株式等の振替に関する法律」に基づき主務大臣から認可を受けた業務を円滑に遂行す\n　るため、利用させていただきます。\n・当機構の取り扱う個人情報、当機構の個人情報保護方針など当機構の個人情報保護に関する事項は、当機構ホームページに掲載されてお\n　りますので、適宜御参照ください。"]

{"sheet":"その２（基準日直後の上場・通知なし）","index":4,"n_rows":74,"n_cols":36,"rows_kept":74,"cut":false,"hidden":true,"merged":[[73,0,76,35],[65,0,66,17],[65,18,66,33],[65,34,66,35],[67,0,68,17],[67,18,68,35],[69,0,70,17],[69,18,70,35],[61,0,62,17],[61,18,62,35],[63,0,64,17],[63,18,64,20],[63,21,64,26],[63,27,64,29],[63,30,64,35],[57,0,58,17],[57,18,58,35],[59,0,60,17],[59,18,60,20],[59,21,60,26],[59,27,60,29],[59,30,60,35],[49,0,53,17],[49,18,49,20],[49,21,49,35],[51,18,51,20],[51,21,51,35],[52,18,52,20],[52,21,52,35],[53,18,53,20],[53,21,53,35],[50,18,50,20],[50,21,50,35],[32,0,34,17],[32,18,34,35],[35,0,37,17],[35,18,37,35],[38,0,40,17],[38,18,40,35],[23,0,25,17],[23,18,25,35],[26,0,28,17],[26,18,28,35],[29,0,31,17],[29,18,31,35],[7,18,7,22],[7,23,7,35],[10,0,10,35],[16,0,16,35],[20,0,22,17],[20,18,22,35],[3,18,3,22],[3,23,3,35],[5,18,5,22],[5,23,5,35],[6,18,6,22],[6,23,6,35]]}
[null,null,null,null,null,null,null,null,null,null,null,null,null,null,null,null,null,null,null,null,null,null,null,null,null,null,null,null,null,null,null,null,null,null,null,"ST04-02"]
[null,null,null,null,null,null,null,null,null,null,null,null,null,null,null,null,null,null,null,null,null,null,null,null,null,null,null,null,null,null,null,null,null,null,null,{"$f":"その１!AJ2","v":"（2023年5月22日版）"}]
[]
["株式会社証券保管振替機構　御中",null,null,null,null,null,null,null,null,null,null,null,null,null,null,null,null,null,"提出日",null,null,null,null,{"$f":"IF(その１!$X$4=\"\",\"\",その１!$X$4)","v":""}]
[]
[null,null,null,null,null,null,null,null,null,null,null,null,null,null,null,null,null,null,"会社名",null,null,null,null,{"$f":"IF(その１!$X$6=\"\",\"\",その１!$X$6)","v":""}]
[null,null,null,null,null,null,null,null,null,null,null,null,null,null,null,null,null,null,"代表者役職名",null,null,null,null,{"$f":"IF(その１!$X$7=\"\",\"\",その１!$X$7)","v":""}]
[null,null,null,null,null,null,null,null,null,null,null,null,null,null,null,null,null,null,"代表者氏名",null,null,null,null,{"$f":"IF(その１!$X$8=\"\",\"\",その１!$X$8)","v":""}]
[]
[]
["株式等振替制度参加に係る届出書（その２）\n（株式等振替制度＜投資口＞用）"]
[]
[]
["株式等振替制度に参加することに伴い、下記のとおり届出いたします。"]
[]
[]
["記"]
[]
[]
["１.取扱開始に係る日程（注１）"]
["上場承認日（注２）"]
[]
[]
["事務上の口座通知取次ぎ受付締切日"]
[]
[]
["基準日（注３）"]
[]
[]
["取扱開始日（注４）"]
[]
[]
["一定の日\n（振替法第228条第1項において準用する第131条第1項の通知は実施しません）"]
[]
[]
["新規記録日"]
[]
[]
["上場日"]
[]
[]
["（注１）吸収合併に伴うテクニカル上場の場合は、注３及び注４にかかわらず、当機構の定める標準日程（株式等振替制度に係る業務処理"]
["　　　　要領「別紙２－２－３（上場日の直前に基準日が設定されるケース）」参照。）に基づいた日程を記載してください。"]
["（注２）TOKYO PRO Marketに係る発行者については、東京証券取引所による上場申請の公表日を記載してください。"]
["（注３）上場日の８営業日前の日から２営業日前の日の間に到来する基準日を記載してください。なお、この基準日には、事業年度が１年"]
["　　　　である場合の事業年度の開始日から６か月後の日（中間配当に係る基準日を定めているときを除く。）等を含みます。"]
["（注４）上場日の８営業日前の日から２営業日前の日の間に到来する基準日の翌営業日を記載してください。"]
[]
["２.上場取引所"]
["上場する金融商品取引所（注５）",null,null,null,null,null,null,null,null,null,null,null,null,null,null,null,null,null,null,null,null,"東京証券取引所"]
[null,null,null,null,null,null,null,null,null,null,null,null,null,null,null,null,null,null,null,null,null,"東京証券取引所（TOKYO PRO Market）"]
[null,null,null,null,null,null,null,null,null,null,null,null,null,null,null,null,null,null,null,null,null,"名古屋証券取引所"]
[null,null,null,null,null,null,null,null,null,null,null,null,null,null,null,null,null,null,null,null,null,"福岡証券取引所"]
[null,null,null,null,null,null,null,null,null,null,null,null,null,null,null,null,null,null,null,null,null,"札幌証券取引所"]
["（注５）上場する金融商品取引所をすべて選択してください。"]
[]
["３.会社・銘柄情報"]
["営業期間"]
[]
["決算期（注６）",null,null,null,null,null,null,null,null,null,null,null,null,null,null,null,null,null,"①",null,null,null,null,null,null,null,null,"②"]
[]
["規約に定める投資主総会に係る基準日"]
[]
["規約に定める分配金の支払いに係る基準日",null,null,null,null,null,null,null,null,null,null,null,null,null,null,null,null,null,"①",null,null,null,null,null,null,null,null,"②"]
[]
["金融商品取引所における売買単位",null,null,null,null,null,null,null,null,null,null,null,null,null,null,null,null,null,null,null,null,null,null,null,null,null,null,null,null,null,null,null,null,null,"口"]
[]
["投資主名簿管理人"]
[]
["特別口座を開設する口座管理機関"]
[]
["（注６）営業期間が１年（決算期が年１回）の場合、②には中間決算期を記載してください。"]
[null,null,null,null,null,null,null,null,null,null,null,null,null,null,null,null,null,null,null,null,null,null,null,null,null,null,null,null,null,null,null,null,null,null,null,"以　上"]
["・当機構は、本書に記載された個人情報を、「社債、株式等の振替に関する法律」に基づき主務大臣から認可を受けた業務を円滑に遂行す\n　るため、利用させていただきます。\n・当機構の取り扱う個人情報、当機構の個人情報保護方針など当機構の個人情報保護に関する事項は、当機構ホームページに掲載されてお\n　りますので、適宜御参照ください。"]

{"sheet":"その３","index":5,"n_rows":67,"n_cols":36,"rows_kept":67,"cut":false,"hidden":false,"merged":[[55,0,56,17],[55,18,56,35],[57,0,58,35],[49,18,50,24],[49,25,50,28],[49,29,50,35],[51,18,52,35],[51,0,52,17],[53,0,54,17],[53,18,54,20],[53,21,54,26],[53,27,54,29],[53,30,54,35],[45,18,46,35],[49,0,50,17],[41,0,42,17],[41,18,42,20],[41,21,42,26],[41,27,42,29],[41,30,42,35],[43,0,44,35],[7,18,7,22],[7,23,7,35],[10,0,10,35],[16,0,16,35],[29,0,30,17],[29,18,30,33],[29,34,30,35],[3,18,3,22],[3,23,3,35],[5,18,5,22],[5,23,5,35],[6,18,6,22],[6,23,6,35],[66,0,69,35],[20,0,21,17],[20,18,21,33],[20,34,21,35],[47,0,48,17],[47,18,48,33],[47,34,48,35],[31,0,32,17],[31,18,32,33],[31,34,32,35],[27,0,28,17],[27,18,28,33],[27,34,28,35],[45,0,46,17],[59,0,60,17],[59,18,60,35]]}
[null,null,null,null,null,null,null,null,null,null,null,null,null,null,null,null,null,null,null,null,null,null,null,null,null,null,null,null,null,null,null,null,null,null,null,"ST04-02"]
[null,null,null,null,null,null,null,null,null,null,null,null,null,null,null,null,null,null,null,null,null,null,null,null,null,null,null,null,null,null,null,null,null,null,null,{"$f":"その１!AJ2","v":"（2023年5月22日版）"}]
[]
["株式会社証券保管振替機構　御中",null,null,null,null,null,null,null,null,null,null,null,null,null,null,null,null,null,"提出日",null,null,null,null,{"$f":"IF(その１!$X$4=\"\",\"\",その１!$X$4)","v":""}]
[]
[null,null,null,null,null,null,null,null,null,null,null,null,null,null,null,null,null,null,"会社名",null,null,null,null,{"$f":"IF(その１!$X$6=\"\",\"\",その１!$X$6)","v":""}]
[null,null,null,null,null,null,null,null,null,null,null,null,null,null,null,null,null,null,"代表者役職名",null,null,null,null,{"$f":"IF(その１!$X$7=\"\",\"\",その１!$X$7)","v":""}]
[null,null,null,null,null,null,null,null,null,null,null,null,null,null,null,null,null,null,"代表者氏名",null,null,null,null,{"$f":"IF(その１!$X$8=\"\",\"\",その１!$X$8)","v":""}]
[]
[]
["株式等振替制度参加に係る届出書（その３）\n（株式等振替制度＜投資口＞用）"]
[]
[]
["株式等振替制度に参加することに伴い、下記のとおり届出いたします。"]
[]
[]
["記"]
[]
[]
["１.新規記録投資口数"]
["新規記録予定投資口数（注１）",null,null,null,null,null,null,null,null,null,null,null,null,null,null,null,null,null,null,null,null,null,null,null,null,null,null,null,null,null,null,null,null,null,"口"]
[]
["（注１）既発行の投資口数に、公募により発行する投資口数を加えた数を記載してください。公募を行わない場合は、既発行の投資口数を"]
["　　　　記載してください。なお、組織再編に伴うテクニカル上場銘柄については、記載不要です。"]
[]
[]
["２.既発行情報"]
["既発行の投資口数（注２）",null,null,null,null,null,null,null,null,null,null,null,null,null,null,null,null,null,null,null,null,null,null,null,null,null,null,null,null,null,null,null,null,null,"口"]
[]
["投資主数（注３）",null,null,null,null,null,null,null,null,null,null,null,null,null,null,null,null,null,null,null,null,null,null,null,null,null,null,null,null,null,null,null,null,null,"人"]
[]
["公示催告手続きが行われている投資証券の口数",null,null,null,null,null,null,null,null,null,null,null,null,null,null,null,null,null,null,null,null,null,null,null,null,null,null,null,null,null,null,null,null,null,"口"]
[]
["（注２）新設合併に伴うテクニカル上場銘柄については、記載不要です。"]
["（注３）公募・売出しにより増加することが見込まれる投資主数は含まず、既存の投資主数を記載してください。なお、取扱開始日から手"]
["　　　　数料計算の対象月の月末までに投資主確定日が到来していない場合には、当機構は、届出された投資主数により、振替制度利用料"]
["　　　　の算定を行います。なお、組織再編に伴うテクニカル上場銘柄については、別途「取扱開始日における株主等の数に係る届出書」"]
["　　　　を提出いただくため、記載不要です。　　　"]
[]
[]
["３.公募増資に係る情報"]
["公募増資の実施有無",null,null,null,null,null,null,null,null,null,null,null,null,null,null,null,null,null,null,null,null,"有",null,null,null,null,null,null,null,null,"無"]
[]
["公募増資の実施有無について「有」を選択した場合のみ、以下の事項を記載してください。"]
[]
["条件決定日（公開価格決定日）（注４）"]
[]
["発行新投資口数",null,null,null,null,null,null,null,null,null,null,null,null,null,null,null,null,null,null,null,null,null,null,null,null,null,null,null,null,null,null,null,null,null,"口"]
[]
["申込期日（申込期間）",null,null,null,null,null,null,null,null,null,null,null,null,null,null,null,null,null,null,null,null,null,null,null,null,"～"]
[]
["払込期日"]
[]
["発行時ＤＶＰ方式の利用の有無",null,null,null,null,null,null,null,null,null,null,null,null,null,null,null,null,null,null,null,null,"有",null,null,null,null,null,null,null,null,"無"]
[]
["引受主幹事証券会社（注５）"]
[]
["発行時ＤＶＰ方式の利用の有無について「有」を選択した場合のみ、以下の事項を記載してください。"]
[]
["払込取扱銀行（注５）"]
[]
["（注４）条件決定後、払込金額が記載された書面（訂正有価証券届出書）の提出が必要です（Targetほふりサイトから）。"]
["（注５）法人格を含め正確に記載してください。払込取扱銀行については、支店名の記載は不要です。"]
[null,null,null,null,null,null,null,null,null,null,null,null,null,null,null,null,null,null,null,null,null,null,null,null,null,null,null,null,null,null,null,null,null,null,null,"以　上"]
[]
[]
["・当機構は、本書に記載された個人情報を、「社債、株式等の振替に関する法律」に基づき主務大臣から認可を受けた業務を円滑に遂行す\n　るため、利用させていただきます。\n・当機構の取り扱う個人情報、当機構の個人情報保護方針など当機構の個人情報保護に関する事項は、当機構ホームページに掲載されてお\n　りますので、適宜御参照ください。"]

{"sheet":"その４","index":6,"n_rows":66,"n_cols":36,"rows_kept":66,"cut":false,"hidden":false,"merged":[[42,11,42,13],[44,18,45,35],[24,5,25,19],[22,20,23,35],[24,20,25,35],[26,8,27,9],[26,10,27,12],[26,13,27,14],[26,15,27,17],[38,0,39,4],[40,20,41,35],[42,14,42,35],[43,5,43,35],[44,0,45,4],[42,0,43,4],[42,5,42,6],[40,0,41,4],[44,5,45,7],[44,8,45,9],[44,10,45,12],[44,13,45,14],[40,5,41,19],[42,7,42,8],[44,15,45,17],[42,9,42,10],[20,0,21,4],[3,18,3,22],[3,23,3,35],[5,18,5,22],[5,23,5,35],[6,18,6,22],[6,23,6,35],[55,0,56,4],[55,5,56,19],[55,20,56,35],[65,0,68,35],[7,18,7,22],[7,23,7,35],[10,0,10,35],[16,0,16,35],[38,5,39,35],[26,18,27,35],[26,0,27,4],[22,0,23,4],[22,5,23,19],[26,5,27,7],[24,0,25,4],[20,5,21,35]]}
[null,null,null,null,null,null,null,null,null,null,null,null,null,null,null,null,null,null,null,null,null,null,null,null,null,null,null,null,null,null,null,null,null,null,null,"ST04-02"]
[null,null,null,null,null,null,null,null,null,null,null,null,null,null,null,null,null,null,null,null,null,null,null,null,null,null,null,null,null,null,null,null,null,null,null,{"$f":"その１!AJ2","v":"（2023年5月22日版）"}]
[]
["株式会社証券保管振替機構　御中",null,null,null,null,null,null,null,null,null,null,null,null,null,null,null,null,null,"提出日",null,null,null,null,{"$f":"IF(その１!$X$4=\"\",\"\",その１!$X$4)","v":""}]
[]
[null,null,null,null,null,null,null,null,null,null,null,null,null,null,null,null,null,null,"会社名",null,null,null,null,{"$f":"IF(その１!$X$6=\"\",\"\",その１!$X$6)","v":""}]
[null,null,null,null,null,null,null,null,null,null,null,null,null,null,null,null,null,null,"代表者役職名",null,null,null,null,{"$f":"IF(その１!$X$7=\"\",\"\",その１!$X$7)","v":""}]
[null,null,null,null,null,null,null,null,null,null,null,null,null,null,null,null,null,null,"代表者氏名",null,null,null,null,{"$f":"IF(その１!$X$8=\"\",\"\",その１!$X$8)","v":""}]
[]
[]
["株式等振替制度参加に係る届出書（その４）\n（株式等振替制度＜投資口＞用）"]
[]
[]
["株式等振替制度に参加することに伴い、下記のとおり届出いたします。"]
[]
[]
["記"]
[]
[]
["１.情報取扱責任者（注１）（注２）"]
["会社名"]
[]
["役職名"]
[]
["氏名"]
[]
["電話番号",null,null,null,null,null,null,null,"-",null,null,null,null,"-"]
[]
["（注１）機構に対する通知又は機構が行う照会に対する報告その他機構との間の連絡を掌る者を指します。機構との連絡担当部署の部長又"]
["　　　　はそれに準じる役職の方を選任してください。なお、選任いただいた情報取扱責任者を変更する場合には、別途届出が必要となり"]
["　　　　ます。"]
["（注２）機構に対する通知又は機構が行う照会に対する報告その他機構との間の連絡を資産運用会社等に委託する場合には、委託先会社の"]
["　　　　情報を記載してください。"]
[]
[]
[]
[]
["２.機構との連絡担当部署（注３）（注４）"]
["会社名"]
[]
["部署名"]
[]
["住所",null,null,null,null,"〒",null,null,null,"-"]
[]
["電話番号",null,null,null,null,null,null,null,"-",null,null,null,null,"-"]
[]
["（注３）機構に対する通知内容等に関する照会先となる部署を記載してください。なお、機構との連絡担当部署を変更する場合には、別途"]
["　　　　届出が必要となります。"]
["（注４）機構に対する通知又は機構が行う照会に対する報告その他機構との間の連絡を資産運用会社等に委託する場合には、委託先会社の"]
["　　　　情報を記載してください。"]
[]
[]
[]
[]
["３.手数料請求書の配信先メールアドレス（注５）"]
["メールアドレス"]
[]
["（注５）手数料請求書は電子配信サービスeco Deliver Expressにて配信します。請求書の配信案内メールの宛先となるメールアドレス（部"]
["　　　　署等で共有されているメールアドレスをお持ちの場合、当該アドレスでの登録が可能です。）を記載してください。なお、メール"]
["　　　　アドレスは電子配信サービス利用開始後、サイト上から変更・追加いただけます。"]
[null,null,null,null,null,null,null,null,null,null,null,null,null,null,null,null,null,null,null,null,null,null,null,null,null,null,null,null,null,null,null,null,null,null,null,"以　上"]
[]
[]
[]
[]
["・当機構は、本書に記載された個人情報を、「社債、株式等の振替に関する法律」に基づき主務大臣から認可を受けた業務を円滑に遂行す\n　るため、利用させていただきます。\n・当機構の取り扱う個人情報、当機構の個人情報保護方針など当機構の個人情報保護に関する事項は、当機構ホームページに掲載されてお\n　りますので、適宜御参照ください。"]

{"sheet":"確認書","index":7,"n_rows":56,"n_cols":60,"rows_kept":56,"cut":false,"hidden":true,"merged":[[2,18,2,22],[2,23,2,36],[4,18,4,22],[4,23,4,36],[5,18,5,22],[5,23,5,36],[6,18,6,22],[6,23,6,34],[8,18,8,22],[8,23,8,36],[9,18,9,22],[9,23,9,36],[10,18,10,22],[10,23,10,34],[12,23,13,36],[14,18,14,22],[14,23,14,36],[55,0,58,36],[12,18,13,22],[30,0,30,36],[15,18,15,22],[15,23,15,34],[18,0,18,36],[21,9,21,25],[34,6,34,11]]}
[]
[]
["株式会社証券保管振替機構　御中",null,null,null,null,null,null,null,null,null,null,null,null,null,null,null,null,null,"提出日",null,null,null,null,{"$f":"IF(その１!$X$4=\"\",\"\",その１!$X$4)","v":""}]
[]
[null,null,null,null,null,null,null,null,null,null,null,null,null,null,null,null,null,null,"発行者名",null,null,null,null,{"$f":"IF(その１!$X$6=\"\",\"\",その１!$X$6)","v":""},null,null,null,null,null,null,null,null,null,null,null,null,null,null,null,null,null,null,null,null,"以下のプルダウンから、該当するものを選択してください。",null,null,null,null,null,null,null,null,null,null,null,null,null,null,50]
[null,null,null,null,null,null,null,null,null,null,null,null,null,null,null,null,null,null,"代表者役職名（注１）",null,null,null,null,{"$f":"IF(その１!$X$7=\"\",\"\",その１!$X$7)","v":""},null,null,null,null,null,null,null,null,null,null,null,null,null,null,null,null,null,null,null,null,"通常の新規上場",null,null,null,null,null,null,null,null,null,null,null,null,null,null,48]
[null,null,null,null,null,null,null,null,null,null,null,null,null,null,null,null,null,null,"代表者氏名",null,null,null,null,{"$f":"IF(その１!$X$8=\"\",\"\",その１!$X$8)","v":""},null,null,null,null,null,null,null,null,null,null,null,"印",null,null,null,null,null,null,null,null,null,null,null,null,null,null,null,null,null,null,null,null,null,null,null,55]
[]
[null,null,null,null,null,null,null,null,null,null,null,null,null,null,null,null,null,null,"投資主名簿管理人名（注２）",null,null,null,null,{"$f":"IF('その２（基準日直後の上場・通知あり）'!S68<>\"\",'その２（基準日直後の上場・通知あり）'!S68,IF('その２（基準日直後の上場・通知なし）'!S68<>\"\",'その２（基準日直後の上場・通知なし）'!S68,\"\"))","v":""}]
[null,null,null,null,null,null,null,null,null,null,null,null,null,null,null,null,null,null,"代表者役職名"]
[null,null,null,null,null,null,null,null,null,null,null,null,null,null,null,null,null,null,"代表者氏名",null,null,null,null,null,null,null,null,null,null,null,null,null,null,null,null,"印"]
[]
[null,null,null,null,null,null,null,null,null,null,null,null,null,null,null,null,null,null,{"$f":"IF($AS$6=\"通常の新規上場\",\"引受主幹事証券会社名\",\"\")","v":"引受主幹事証券会社名"},null,null,null,null,{"$f":"IF(その３!S56=\"\",\"\",その３!S56)","v":""}]
[]
[null,null,null,null,null,null,null,null,null,null,null,null,null,null,null,null,null,null,{"$f":"IF($AS$6=\"通常の新規上場\",\"代表者役職名\",\"\")","v":"代表者役職名"}]
[null,null,null,null,null,null,null,null,null,null,null,null,null,null,null,null,null,null,{"$f":"IF($AS$6=\"通常の新規上場\",\"代表者氏名\",\"\")","v":"代表者氏名"},null,null,null,null,null,null,null,null,null,null,null,null,null,null,null,null,{"$f":"IF($AS$6=\"通常の新規上場\",\"印\",\"\")","v":"印"}]
[]
[]
["確認書"]
[]
[]
[{"$f":"IF($AS$6=\"通常の新規上場\",MID(プルダウン!$B$33,$BH$5*0+1,$BH$5),MID(プルダウン!$B$44,$BH$5*0+1,$BH$5))","v":"　株式等振替制度における　　　　　　　　　　　　　　　　　　　　　　　　　　　（以下「甲」という。）"},null,null,null,null,null,null,null,null,{"$f":"IF(その１!$X$6=\"\",\"\",その１!$X$6)","v":""},null,null,null,null,null,null,null,null,null,null,null,null,null,null,null,null,{"$f":"IF($AS$6=\"通常の新規上場\",MID(プルダウン!$B$33,40,11),MID(プルダウン!$B$44,40,11))","v":"（以下「甲」という。）"}]
[{"$f":"IF($AS$6=\"通常の新規上場\",MID(プルダウン!$B$33,$BH$5*1+1,$BH$5),MID(プルダウン!$B$44,$BH$5*1+1,$BH$5))","v":"投資口の取扱開始に際しては、甲の投資信託及び投資法人に関する法律第７７条の３に規定する基準日又は事業"}]
[{"$f":"IF($AS$6=\"通常の新規上場\",MID(プルダウン!$B$33,$BH$5*2+1,$BH$5),MID(プルダウン!$B$44,$BH$5*2+1,$BH$5))","v":"年度の開始日から６か月後の日等が、新規記録日の７営業日前の日から前営業日（金融商品取引所への上場予定"}]
[{"$f":"IF($AS$6=\"通常の新規上場\",MID(プルダウン!$B$33,$BH$5*3+1,$BH$5),MID(プルダウン!$B$44,$BH$5*3+1,$BH$5))","v":"日の８営業日前の日から２営業日前の日）までの間に到来することから、株式会社証券保管振替機構（以下「機"}]
[{"$f":"IF($AS$6=\"通常の新規上場\",MID(プルダウン!$B$33,$BH$5*4+1,$BH$5),MID(プルダウン!$B$44,$BH$5*4+1,$BH$5))","v":"構」という。）の定める株式等振替制度に係る業務処理要領における「新規上場時の取扱開始の標準日程」とは"}]
[{"$f":"IF($AS$6=\"通常の新規上場\",MID(プルダウン!$B$33,$BH$5*5+1,$BH$5),MID(プルダウン!$B$45,$BH$5*0+1,$BH$5))","v":"異なる日程での取扱いとすることを要望します。"}]
[{"$f":"IF($AS$6=\"通常の新規上場\",MID(プルダウン!$B$34,$BH$5*0+1,$BH$5),MID(プルダウン!$B$45,$BH$5*1+1,$BH$5))","v":"　このため、甲、甲が選任した投資主名簿管理人（以下「乙」という。）及び引受主幹事証券会社（以下「丙」"}]
[{"$f":"IF($AS$6=\"通常の新規上場\",MID(プルダウン!$B$34,$BH$5*1+1,$BH$5),\"\")","v":"という。）は、下記の事項を行うことを確認します。"}]
[]
["記"]
[]
[]
[]
[{"$f":"\"１．\"&MID(プルダウン!$B$35,$BH$6*0+1,$BH$6)","v":"１．甲は、甲が　　　　　　　　　　　付で機構に提出した「株式等振替制度参加に係る届出書（その２）」に"},null,null,null,null,null,{"$f":"IF(その１!$X$4=\"\",\"\",その１!$X$4)","v":""},null,null,null,null,null,{"$f":"MID(プルダウン!$B$35,17,32)","v":"付で機構に提出した「株式等振替制度参加に係る届出書（その２）」に"}]
[{"$f":"\"　　\"&MID(プルダウン!$B$35,$BH$6*1+1,$BH$6)","v":"　　記載の事務上の口座通知取次ぎ受付締切日の前日までに、甲の投資主が投資主名簿の名義書換を極力完了さ"}]
[{"$f":"\"　　\"&MID(プルダウン!$B$35,$BH$6*2+1,$BH$6)","v":"　　せるよう、あらかじめ、甲の投資主と十分に調整すること。"}]
[]
[{"$f":"IF($AS$6=\"通常の新規上場\",\"２．\"&MID(プルダウン!$B$36,$BH$6*0+1,$BH$6),\"２．\"&MID(プルダウン!$B$37,$BH$6*0+1,$BH$6))","v":"２．丙は、１．に定める甲が行う甲の投資主との調整に協力すること。"}]
[{"$f":"IF($AS$6=\"通常の新規上場\",\"\",\"　　\"&MID(プルダウン!$B$37,$BH$6*1+1,$BH$6))","v":""}]
[{"$f":"IF($AS$6=\"通常の新規上場\",\"３．\"&MID(プルダウン!$B$37,$BH$6*0+1,$BH$6),\"　　\"&MID(プルダウン!$B$37,$BH$6*2+1,$BH$6))","v":"３．１．に定める投資主との調整を行ってもなお、甲又は乙が甲の投資主から投資主名簿の名義書換請求を受け"}]
[{"$f":"IF($AS$6=\"通常の新規上場\",\"　　\"&MID(プルダウン!$B$37,$BH$6*1+1,$BH$6),\"　　\"&MID(プルダウン!$B$37,$BH$6*3+1,$BH$6))","v":"　　た場合は、甲は、乙に対して、甲が乙を通じて機構に通知する社債、株式等の振替に関する法律第２２８条"}]
[{"$f":"IF($AS$6=\"通常の新規上場\",\"　　\"&MID(プルダウン!$B$37,$BH$6*2+1,$BH$6),\"\")","v":"　　において準用する同法第１３０条第１項に基づく新規記録通知及び甲が行う同法第１３１条第３項に基づく"}]
[{"$f":"IF($AS$6=\"通常の新規上場\",\"　　\"&MID(プルダウン!$B$37,$BH$6*3+1,$BH$6),\"３．\"&MID(プルダウン!$B$46,$BH$6*0+1,$BH$6))","v":"　　特別口座の開設等において、当該名義書換請求の内容を適切に反映した業務処理を行うよう指示すること。"}]
[]
[{"$f":"IF($AS$6=\"通常の新規上場\",\"４．\"&MID(プルダウン!$B$38,$BH$6*0+1,$BH$6),\"\")","v":"４．乙は、甲から３．に定める指示を受けた場合には、当該業務処理を適切に行うこと。"}]
[null,null,null,null,null,null,null,null,null,null,null,null,null,null,null,null,null,null,null,null,null,null,null,null,null,null,null,null,null,null,null,null,null,null,null,null,"以　上"]
[]
[{"$f":"\"（注１）\"&MID(プルダウン!$B$39,$BH$7*0+1,$BH$7)","v":"（注１）代表者の役職名及び氏名を御記入のうえ、会社の実印（商業登記法第２０条第１項の規定により登記所に提出された印鑑）"}]
[{"$f":"\"　　　　\"&MID(プルダウン!$B$39,$BH$7*1+1,$BH$7)","v":"　　　　を捺印してください。"}]
[{"$f":"IF($AS$6=\"通常の新規上場\",\"（注２）\"&MID(プルダウン!$B$40,$BH$7*0+1,$BH$7),\"（注２）\"&MID(プルダウン!$B$47,$BH$7*0+1,$BH$7))","v":"（注２）発行者から上記３．の指示を受け、当該業務処理を行うこととなる会社名を記載してください。投資主名簿管理人以外が当"}]
[{"$f":"IF($AS$6=\"通常の新規上場\",\"　　　　\"&MID(プルダウン!$B$40,$BH$7*1+1,$BH$7),\"　　　　\"&MID(プルダウン!$B$47,$BH$7*1+1,$BH$7))","v":"　　　　該業務処理を行う場合には、本文中「投資主名簿管理人」とあるのは、当該業務処理を行う会社を指すものとします。"}]
[]
[]
[]
["・当機構は、本書に記載された個人情報を、「社債、株式等の振替に関する法律」に基づき主務大臣から認可を受けた業務を円滑に遂行す\n　るため、利用させていただきます。\n・当機構の取り扱う個人情報、当機構の個人情報保護方針など当機構の個人情報保護に関する事項は、当機構ホームページに掲載されておりま　\n　すので、適宜御参照ください。"]

{"sheet":"CSV出力用","index":8,"n_rows":53,"n_cols":5,"rows_kept":53,"cut":false,"hidden":true,"merged":[[20,3,21,3],[20,0,21,0]]}
["項番","項目名","機構報登録項目ID","設定する値","補足"]
[1,"有価証券区分","SecuritiesTYP","002","固定値"]
[2,"通知事項","CAID",200,"固定値"]
[3,"掲載日","PublishDate",null,"ブランク指定"]
[4,"完全子会社数","WhollyOwnedSubsidiaryNum",null,"ブランク指定"]
[5,"銘柄コード","@CODE",null,"ブランク指定"]
[6,"会社コード","@COM_CODE_002_200",null,"ブランク指定"]
[7,"ISINコード","@JP_CODE_002_200",null,"ブランク指定"]
[8,"有価証券区分","@DIVISION_002_200","投資口","固定値"]
[9,"商品種別","@SHOHIN_CODE_002_200","投資口","固定値"]
[10,"会社名（漢字）","@CO_NAME_002_200",{"$f":"その１!F22","v":0},"関数"]
[11,"会社名（カナ）","@CO_NAME_KANA_002_200",{"$f":"その１!F21","v":0},"関数"]
[12,"銘柄名称","@NAME_NEW_LISTING",{"$f":"D11","v":0},"関数"]
[13,"銘柄略称","@SHORT_NAME_002_200",null,"ブランク指定"]
[14,"法人番号","@HOUJIN_NUMBER_002_200",{"$f":"SUBSTITUTE(その１!F28,\"　\",\"\")","v":""},"関数"]
[15,"口座通知取次ぎの締切日","@KOZA_TUUTI_SIME_DAY_002_200",{"$f":"TEXT(CONCATENATE(その２!S23,'その２（131条1項の通知なし）'!S23,'その２（基準日直後の上場・通知あり）'!S24,'その２（基準日直後の上場・通知なし）'!S24),\"YYYY/MM/DD\")","v":""},"関数"]
[16,"取扱開始日","@START_DAY_002_200",{"$f":"TEXT(CONCATENATE(その２!S23,'その２（131条1項の通知なし）'!S23,'その２（基準日直後の上場・通知あり）'!S30,'その２（基準日直後の上場・通知なし）'!S30),\"YYYY/MM/DD\")","v":""},"関数"]
[17,"一定の日","@ITTEI_DAY_002_200",{"$f":"TEXT(CONCATENATE(その２!S25,'その２（131条1項の通知なし）'!S25,'その２（基準日直後の上場・通知あり）'!S33,'その２（基準日直後の上場・通知なし）'!S33),\"YYYY/MM/DD\")","v":""},"関数"]
[18,"新規記録日","@KIROKU_DAY_002_200",{"$f":"TEXT(CONCATENATE(その２!S27,'その２（131条1項の通知なし）'!S27,'その２（基準日直後の上場・通知あり）'!S36,'その２（基準日直後の上場・通知なし）'!S36),\"YYYY/MM/DD\")","v":""},"関数"]
[19,"上場日","@LIST_DAY_002_200",{"$f":"TEXT(CONCATENATE(その２!S29,'その２（131条1項の通知なし）'!S29,'その２（基準日直後の上場・通知あり）'!S39,'その２（基準日直後の上場・通知なし）'!S39),\"YYYY/MM/DD\")","v":""},"関数"]
[20,"東京証券取引所","@MARKET_002_200",{"$f":"IF(SUBSTITUTE(CONCATENATE(その２!S36,'その２（131条1項の通知なし）'!S36,'その２（基準日直後の上場・通知あり）'!S50,'その２（基準日直後の上場・通知なし）'!S50),\"　\",\"\")<>\"\",\"東京\",IF(SUBSTITUTE(CONCATENATE(その２!S37,'その２（131条1項の通知なし）'!S37,'その２（基準日直後の上場・通知あり）'!S51,'その２（基準日直後の上場・通知なし）'!S51),\"　\",\"\")<>\"\",\"東京\",\"\"))","v":""},"関数"]
[null,"東京証券取引所（TOKYO PRO Market）","@MARKET_002_200",null,"関数"]
[21,"名古屋証券取引所","@MARKET_002_200",{"$f":"IF(SUBSTITUTE(CONCATENATE(その２!S38,'その２（131条1項の通知なし）'!S38,'その２（基準日直後の上場・通知あり）'!S52,'その２（基準日直後の上場・通知なし）'!S52),\"　\",\"\")<>\"\",\"名古屋\",\"\")","v":""},"関数"]
[22,"福岡証券取引所","@MARKET_002_200",{"$f":"IF(SUBSTITUTE(CONCATENATE(その２!S39,'その２（131条1項の通知なし）'!S39,'その２（基準日直後の上場・通知あり）'!S53,'その２（基準日直後の上場・通知なし）'!S53),\"　\",\"\")<>\"\",\"福岡\",\"\")","v":""},"関数"]
[23,"札幌証券取引所","@MARKET_002_200",{"$f":"IF(SUBSTITUTE(CONCATENATE(その２!S40,'その２（131条1項の通知なし）'!S40,'その２（基準日直後の上場・通知あり）'!S54,'その２（基準日直後の上場・通知なし）'!S54),\"　\",\"\")<>\"\",\"札幌\",\"\")","v":""},"関数"]
[24,"基準日直後の上場有無","@JOJOUMU_002_200",{"$f":"IF(D16<>D17,\"有\",\"無\")","v":"無"},"関数"]
[25,"営業期間","@EIGYOU_KIKAN_002_200",{"$f":"TRIM(CONCATENATE(その２!S45,'その２（131条1項の通知なし）'!S45,'その２（基準日直後の上場・通知あり）'!S58,'その２（基準日直後の上場・通知なし）'!S58))","v":""},"関数"]
[26,"決算期１","@SETTLE_MMDD_1_002_200",{"$f":"IF(OR(その２!S45=\"半年\",'その２（131条1項の通知なし）'!S45=\"半年\",'その２（基準日直後の上場・通知あり）'!S58=\"半年\",'その２（基準日直後の上場・通知なし）'!S58=\"半年\"),TEXT(CONCATENATE(その２!V47,'その２（131条1項の通知なし）'!V47,'その２（基準日直後の上場・通知あり）'!V60,'その２（基準日直後の上場・通知なし）'!V60),\"MM/DD\"),\"\")","v":""},"関数"]
[27,"決算期２","@SETTLE_MMDD_2_002_200",{"$f":"IF(OR(その２!S45=\"半年\",'その２（131条1項の通知なし）'!S45=\"半年\",'その２（基準日直後の上場・通知あり）'!S58=\"半年\",'その２（基準日直後の上場・通知なし）'!S58=\"半年\"),TEXT(CONCATENATE(その２!AE47,'その２（131条1項の通知なし）'!AE47,'その２（基準日直後の上場・通知あり）'!AE60,'その２（基準日直後の上場・通知なし）'!AE60),\"MM/DD\"),\"\")","v":""},"関数"]
[28,"分配基準日１","@BUNPAI_KIJYUNBI_1_002_200",{"$f":"IF(OR(その２!S45=\"半年\",'その２（131条1項の通知なし）'!S45=\"半年\",'その２（基準日直後の上場・通知あり）'!S58=\"半年\",'その２（基準日直後の上場・通知なし）'!S58=\"半年\"),TEXT(CONCATENATE(その２!V51,'その２（131条1項の通知なし）'!V51,'その２（基準日直後の上場・通知あり）'!V64,'その２（基準日直後の上場・通知なし）'!V64),\"MM/DD\"),\"\")","v":""},"関数"]
[29,"分配基準日２","@BUNPAI_KIJYUNBI_2_002_200",{"$f":"IF(OR(その２!S45=\"半年\",'その２（131条1項の通知なし）'!S45=\"半年\",'その２（基準日直後の上場・通知あり）'!S58=\"半年\",'その２（基準日直後の上場・通知なし）'!S58=\"半年\"),TEXT(CONCATENATE(その２!AE51,'その２（131条1項の通知なし）'!AE51,'その２（基準日直後の上場・通知あり）'!AE64,'その２（基準日直後の上場・通知なし）'!AE64),\"MM/DD\"),\"\")","v":""},"関数"]
[30,"決算期","@SETTLE_MMDD_002_200",{"$f":"IF(OR(その２!S45=\"１年\",'その２（131条1項の通知なし）'!S45=\"１年\",'その２（基準日直後の上場・通知あり）'!S58=\"１年\",'その２（基準日直後の上場・通知なし）'!S58=\"１年\"),TEXT(CONCATENATE(その２!V47,'その２（131条1項の通知なし）'!V47,'その２（基準日直後の上場・通知あり）'!V60,'その２（基準日直後の上場・通知なし）'!V60),\"MM/DD\"),\"\")","v":""},"関数"]
[31,"中間決算期","@HALF_SETTLE_MMDD_002_200",{"$f":"IF(OR(その２!S45=\"１年\",'その２（131条1項の通知なし）'!S45=\"１年\",'その２（基準日直後の上場・通知あり）'!S58=\"１年\",'その２（基準日直後の上場・通知なし）'!S58=\"１年\"),TEXT(CONCATENATE(その２!AE47,'その２（131条1項の通知なし）'!AE47,'その２（基準日直後の上場・通知あり）'!AE60,'その２（基準日直後の上場・通知なし）'!AE60),\"MM/DD\"),\"\")","v":""},"関数"]
[32,"分配基準日","@BUNPAI_KIJYUNBI_002_200",{"$f":"IF(OR(その２!S45=\"１年\",'その２（131条1項の通知なし）'!S45=\"１年\",'その２（基準日直後の上場・通知あり）'!S58=\"１年\",'その２（基準日直後の上場・通知なし）'!S58=\"１年\"),TEXT(CONCATENATE(その２!V51,'その２（131条1項の通知なし）'!V51,'その２（基準日直後の上場・通知あり）'!V64,'その２（基準日直後の上場・通知なし）'!V64),\"MM/DD\"),\"\")","v":""},"関数"]
[33,"決算期のスキップの有無","@KESSAN_SKIP_002_200","有","固定値"]
[34,"定総基準日＜分配基準日と異なる場合のみ＞","@TEISOU_KIJYUNBI_002_200",null,"ブランク指定"]
[35,"隔年設定(初回定時総会基準日)","@KAKUNENN_TEIJI_002_200",null,"ブランク指定"]
[36,"隔年設定(周期年数)","@KAKUNENN_NEN_002_200",null,"ブランク指定"]
[37,"売買単位","@UNIT_002_200",{"$f":"CONCATENATE(その２!S53,'その２（131条1項の通知なし）'!S53,'その２（基準日直後の上場・通知あり）'!S66,'その２（基準日直後の上場・通知なし）'!S66)","v":""},"関数"]
[38,"投資主名簿管理人コード","@TA_CODE_002_200",{"$f":"SUBSTITUTE(SUBSTITUTE(CONCATENATE(その２!S55,'その２（131条1項の通知なし）'!S55,'その２（基準日直後の上場・通知あり）'!S68,'その２（基準日直後の上場・通知なし）'!S68),\"　\",\"\"),\"株式会社\",\"\")","v":""},"関数 株式会社なしで完全一致検索ができる場合、株式会社をとる"]
[39,"特別口座開設先口座管理機関コード","@TOKUBETSU_KOZA_CODE_BETSU_002_200",{"$f":"SUBSTITUTE(SUBSTITUTE(CONCATENATE(その２!S57,'その２（131条1項の通知なし）'!S57,'その２（基準日直後の上場・通知あり）'!S70,'その２（基準日直後の上場・通知なし）'!S70),\"　\",\"\"),\"株式会社\",\"\")","v":""},"関数 株式会社なしで完全一致検索ができる場合、株式会社をとる"]
[40,"新規記録予定投資口数","@KISOKU_AMOUNT_002_200",{"$f":"その３!S21","v":0},"関数"]
[41,"公示催告証券有無","@KOUJI_TOUSHI_002_200",{"$f":"IF(その３!S32=0,\"無\",\"有\")","v":"無"},"関数　その３の「公示催告手続きが行われている投資証券の口数」が0口の場合「無」"]
[42,"募集投資口数","@BOSHU_002_200",{"$f":"その３!S48","v":0},"関数"]
[43,"募集投資口の払込金額(１口あたり)","@PAY_PRICE_002_200",null,"ブランク指定"]
[44,"申込期間（開始日）","@MOUSHIKOMI_START_DAY_002_200",{"$f":"IF(その３!S50<>\"\",TEXT(その３!S50,\"YYYY/MM/DD\"),\"\")","v":""},"関数"]
[45,"申込期間（終了日）","@MOUSHIKOMI_END_DAY_002_200",{"$f":"IF(その３!AD50<>\"\",TEXT(その３!AD50,\"YYYY/MM/DD\"),\"\")","v":""},"関数"]
[46,"払込期日","@HARAIKOMI_SETTLE_DAY_002_200",{"$f":"IF(その３!S52<>\"\",TEXT(その３!S52,\"YYYY/MM/DD\"),\"\")","v":""},"関数"]
[47,"発行時DVP方式","@DVP_002_200",{"$f":"IF(その３!S42<>\"\",IF(その３!S54=\"○\",\"ＤＶＰ方式\",\"非ＤＶＰ方式\"),\"\")","v":""},"関数"]
[48,"引受主幹事証券会社コード","@MAIN_KANJI_CODE_002_200",{"$f":"SUBSTITUTE(SUBSTITUTE(その３!S56,\"　\",\"\"),\"株式会社\",\"\")","v":""},"関数 株式会社なしで完全一致検索ができる場合、株式会社をとる"]
[49,"払込取扱銀行コード","@PAY_BANK_CODE_002_200",{"$f":"SUBSTITUTE(SUBSTITUTE(その３!S60,\"　\",\"\"),\"株式会社\",\"\")","v":""},"関数 株式会社なしで完全一致検索ができる場合、株式会社をとる"]
[50,"ゆうちょ銀行口座の指定可否","@YUCHO_RIYO_002_200","002","固定値"]
["END"]

{"sheet":"特殊ケース","index":9,"n_rows":5,"n_cols":1,"rows_kept":5,"cut":false,"hidden":false,"merged":[[1,0,1,9],[3,0,3,9],[4,0,4,9]]}
[]
["特殊ケース(標準日程と異なる取扱開始日程を採用する場合)"]
[]
["　以下に掲げるケースでは、「株式等振替制度参加に係る届出書（その２）」の様式が異なります。それぞれのボタンを押下の上、該当の「株式等振替制度参加に係る届出書（その２）」を用いてください。また、基準日直後に上場日を設定する場合には、「確認書」の提出も必要になります。"]
["　不明な点等ありましたら、当機構（振替業務部　銘柄管理グループ 03-3661-1836)までお問い合わせください。"]

{"sheet":"ツール処理シート","index":10,"n_rows":150,"n_cols":23,"rows_kept":150,"cut":false,"hidden":true,"merged":[[9,14,9,15],[9,16,9,19]]}
[]
[null,"＜基本情報＞"]
[null,"届出書名"]
[null,"対象E","法人/株式等発行者"]
[null,"Excel上データ開始行",13]
[null,"Excel上データ終了行",148]
[]
[null,"＜届出事項＞"]
[null,null,null,null,"ツール処理対象範囲",null,null,null,null,null,"共通参考情報",null,null,null,"目的地等参考情報"]
[null,"#","項目名","手入力項目フラグ","データ種別","登録先DB","行順序","列番号","登録値","備考","ソース種別","届出書上のExcelによる制御","ツール処理シート上のExcelによる制御","備考","CO",null,"マス管",null,null,null,"マス管条件必須時の条件","１届出書における最大届出数","備考"]
[]
[null,null,"＊届出書のツール読込シートに表示する項目名。","＊マスタ管理システムに手入力する際に必要となる可能性のある項目は〇。それ以外は-。","T：登録値の内容をそのまま（Null値はNull値として、Null以外は登録値を）CSV化する。（スルーのT。）\nN：登録値がNullの場合は、現在DBから値を採用する。登録値がNull以外の場合は、その値を採用する。（フラグ「なし」のN。）\nA：\"N\"と同じ処理を行い、さらに、登録値がNull以外の場合は、当該項目の直前に位置するフィールドに、\"*\"を入力する。（フラグ「あり」のA。）\nF：なにもしない。（フラグのF。）","＊COにおける登録先DBのDBコード。","＊同一のツール処理シートから複数のCO登録用レコードを生成する場合の、レコード識別用番号。","＊CO登録用CSVファイル上のフィールド順序。","＊実際に登録する値。補記が必要な項目はここで補記する。","自由記入欄","規定：原則規定値。場合によっては規定値と異なる値を設定する。\n届出：届出された内容または届出された内容を変換して取得するフラグ。\n補記：機構が補記する。\nコピー：設計情報上の他の登録値をコピーして充足する。","＊届出書上で、Excelの条件付書式等を利用して行う予定の制御内容。","＊ツール処理シート上で、Excelの関数又は条件付書式等を利用して行う予定の制御又はツール処理シート上に記載する規定値の内容","自由記入欄","データ長","対象DB","登録種別","対象E","データ長","属性","＊業務ではなく、あくまでマス管のシステム要件。","＊１届出書において届け出をさせる最大個数。主に口座関係の届出時に、口座番号が複数個届出される場合を想定。","自由記入欄"]
[null,{"$f":"ROW()-12","v":1},"COレコード番号","-","T","db26",1,1,null,null,"規定","届出非表示項目","規定値（\"\"(Null値))","COのDBを上書きする際に、対象レコードを特定するための項目。","-","-","対象外","-","-","-",null,1]
[null,{"$f":"ROW()-12","v":2},"CO登録日時","-","T","db26",1,2,null,null,"規定","届出非表示項目","規定値（\"\"(Null値))","COレコード番号を生かすために必要なCOデータベースのフィールド枠。","-","-","対象外","-","-","-",null,1]
[null,3,"CO登録者","-","T","db26",1,3,null,null,"規定","届出非表示項目","規定値（\"\"(Null値))","COレコード番号を生かすために必要なCOデータベースのフィールド枠。","-","-","対象外","-","-","-",null,1]
[null,4,"CO更新日時","-","T","db26",1,4,null,null,"規定","届出非表示項目","規定値（\"\"(Null値))","COレコード番号を生かすために必要なCOデータベースのフィールド枠。","-","-","対象外","-","-","-",null,1]
[null,5,"CO更新者","-","T","db26",1,5,null,null,"規定","届出非表示項目","規定値（\"\"(Null値))","COレコード番号を生かすために必要なCOデータベースのフィールド枠。","-","-","対象外","-","-","-",null,1]
[null,6,"データレコード識別区分","-","T","db26",1,6,600000,null,"規定","届出非表示項目","規定値（\"600000\"）",null,6,"法人","必須","法人",6,9,null,1]
[null,7,"操作区分","-","T","db26",1,7,"INS",null,"規定","届出非表示項目","規定値（\"INS\")",null,3,"法人","必須","法人",3,"Ca",null,1]
[null,8,"会社コード","〇","T","db26",1,8,{"$f":"IF(INDIRECT(\"補記シート!D18\")=\"\",\"\",INDIRECT(\"補記シート!D18\"))","v":""},null,"補記","届出非表示項目","[入力規則]\n・7桁\n・下２桁は00のみを許容",null,7,"法人","必須","法人",7,"C",null,1]
[null,9,"適用開始年月日（マス管用）","〇","T","db26",1,9,{"$f":"TEXT(CONCATENATE(その２!S21,'その２（131条1項の通知なし）'!S21,'その２（基準日直後の上場・通知あり）'!S21,'その２（基準日直後の上場・通知なし）'!S21),\"YYYYMMDD\")","v":""},null,"補記","届出非表示項目","[入力規則]\n・数字のみ\n・８桁",null,8,"法人","必須","法人",8,9,null,1]
[null,10,"更新区分","-","T","db26",1,10,1,null,"届出","[入力規則]\nプルダウンによる選択（新規or変更）","[関数]\n届出書上の該当箇所が「新規」なら1、「変更」なら2、ブランクならNull値を設定。",null,1,"法人","必須","法人",1,9,null,1]
[null,11,"項目変更フラグ（利用開始日（マス管用））","-","F","db26",1,11,null,null,"規定","届出非表示項目","規定値（\"\"(Null値))",null,1,"法人","任意","法人",1,"Cb",null,1]
[null,12,"利用開始年月日（マス管用）","〇","A","db26",1,12,{"$f":"TEXT(CONCATENATE(その２!S23,'その２（131条1項の通知なし）'!S23,'その２（基準日直後の上場・通知あり）'!S30,'その２（基準日直後の上場・通知なし）'!S30),\"YYYYMMDD\")","v":""},null,"届出","[入力規則]\n・数字のみ\n・８桁","[関数]\n届出書上の更新区分が「新規」なら、届出書上の「適用日」を転記する。「新規」以外の場合には、Null値とする。",null,8,"法人","条件必須","法人",8,9,"以下の条件を満たす場合、入力必須。\n・更新区分＝「1」（新規）\n・操作区分＝「INS」（登録）",1]
[null,13,"項目変更フラグ（利用終了年月日（マス管用））","-","F","db26",1,13,null,null,"規定","届出非表示項目","規定値（\"\"(Null値))",null,1,"法人","任意","法人",1,"Cb",null,1]
[null,14,"利用終了年月日（マス管用）","〇","A","db26",1,14,29991231,null,"規定","届出非表示項目","規定値（\"29991231\")","機構と完全に縁を切る場合にのみ本フィールドに29991231以外が適用されることを想定。ただし、その場合には人間の手作業によるオペレーションのため、本項目は規定値29991231を設定する以外には使用しない。",8,"法人","任意","法人",8,9,null,1]
[null,15,"項目変更フラグ（新会社コード）","-","F","db26",1,15,null,null,"規定","届出非表示項目","規定値（\"\"(Null値))",null,1,"法人","任意","法人",1,"Cb",null,1]
[null,16,"新会社コード","〇","A","db26",1,16,null,null,"補記","届出非表示項目","[入力規則]\n・7桁\n・下２桁は00のみを許容","・脱退対象の法人が脱退時に合併機能を利用する場合には、入力必須。\n・それ以外の場合は不要。",7,"法人","任意","法人",7,"C",null,1]
[null,17,"項目変更フラグ（組織名称）","-","F","db26",1,17,null,null,"規定","届出非表示項目","規定値（\"\"(Null値))",null,1,"法人","任意","法人",1,"Cb",null,1]
[null,18,"商号又は名称","〇","A","db26",1,18,{"$f":"DBCS(INDIRECT(\"その１!F22\"))","v":""},null,"届出","[入力規則]\n全角100文字以内","[関数]\n届出書上の該当箇所を転記する。","「株式会社」等を含めて100文字以内。\nPSMSの一部参加形態（投資顧問）については、商号の後ろに形態（例：○○アセット（投資顧問））を記載し、同一法人につき複数の法人Eが保持されることとなる。\n【桁数について備考】\n元々30桁の運用制限を設ける予定だったが、正式名称を機械的に短縮することにより、マス管から連動されるHP制度参加者一覧や口座簿の名称（FIAMIはないが）への影響勘案し、運用制限を撤廃することとする。\n30桁を超過するのは主にFIAMIが想定されるが、間接口座管理機関であり、現行マスタのないSBCPシステム側では30桁超過しても空振りで問題ないと思慮。\nTMIで使用しているSB代理人名称については、コードと名称の紐づけを行う際の機能で30桁制限あるとのことだが、30桁名称の代理人銀行は存在しないので運用対応できる認識。",100,"法人","条件必須","法人",100,"N","以下を全て満たす場合、入力必須。\n・更新区分＝「1」(新規)\n・操作区分＝「INS」(登録)",1]
[null,19,"項目変更フラグ（組織略称）","-","F","db26",1,19,null,null,"規定","届出非表示項目","規定値（\"\"(Null値))",null,1,"法人","任意","法人",1,"Cb",null,1]
[null,20,"組織略称","〇","A","db26",1,20,null,null,"届出","[入力規則]\n全角8文字","[関数]\n届出書上の該当箇所を転記する。","全参加者に記載させる。",8,"法人","任意","法人",8,"N",null,1]
[null,21,"項目変更フラグ（組織英字名称）","-","F","db26",1,21,null,null,"規定","届出非表示項目","規定値（\"\"(Null値))",null,1,"法人","任意","法人",1,"Cb",null,1]
[null,22,"組織英字名称","〇","A","db26",1,22,null,null,"届出","[入力規則]\n・140桁以内\n・半角のみ","[関数]\n届出書上の該当箇所を転記する。","半角英大文字・数字・一部記号のみ許容\n一部記号は、次のものを許容（マスタ管理システムの文字種定義と同一。）\n+、-、,、:、.、(、)、/、'、?及び半角スペース ",140,"法人","任意","法人",140,"Ci",null,1]
[null,23,"項目変更フラグ（組織カナ名称）","-","F","db26",1,23,null,null,"規定","届出非表示項目","規定値（\"\"(Null値))",null,1,"法人","任意","法人",1,"Cb",null,1]
[null,24,"組織カナ名称","〇","A","db26",1,24,{"$f":"ASC(INDIRECT(\"その１!F21\"))","v":""},null,"届出","[入力規則]\n・200桁以内\n・半角のみ","[関数]\n届出書上の該当箇所を転記する。",null,"200\n（マス管に合わせる）","法人","条件必須","法人",200,"A","以下を全て満たす場合、入力必須。\n・更新区分＝「1」(新規)\n・操作区分＝「INS」(登録)",1]
[null,25,"項目変更フラグ（外株組織カナ略称）","-","F","db26",1,25,null,null,"規定","届出非表示項目","規定値（\"\"(Null値))",null,1,"法人","任意","法人",1,"Cb",null,1]
[null,26,"外株組織カナ略称","〇","A","db26",1,26,null,null,"届出","[入力規則]\n28桁","[関数]\n届出書上の該当箇所を転記する。",null,28,"法人","任意","法人",28,"Ch",null,1]
[null,27,"項目変更フラグ（本店所在地）","-","F","db26",1,27,null,null,"規定","届出非表示項目","規定値（\"\"(Null値))",null,1,"法人","任意","法人",1,"Cb",null,1]
[null,28,"本店所在地","〇","A","db26",1,28,{"$f":"INDIRECT(\"その１!F24\")","v":0},null,"届出","[入力規則]\n全角200文字以内","[関数]\n届出書上の該当箇所を転記する。","・建物名の取り扱いについては、追って検討（印鑑証明や登記事項証明の要否が未決であるため）","200\n（マス管に合わせる）","法人","任意","法人",200,"M",null,1]
[null,29,"項目変更フラグ（組織業種区分）","-","F","db26",1,29,null,null,"規定","届出非表示項目","規定値（\"\"(Null値))",null,1,"法人","任意","法人",1,"Cb",null,1]
[null,30,"組織業種区分","〇","A","db26",1,30,null,null,"補記","届出非表示項目","[入力規則]\n1桁",null,1,"法人","任意","法人",1,"Ca",null,1]
[null,31,"*組織業種区分名称","-","T","db26",1,31,null,null,"規定","届出非表示項目","規定値（\"\"(Null値))",null,"LU","LU","対象外"]
[null,32,"項目変更フラグ（BICコード）","-","F","db26",1,32,null,null,"規定","届出非表示項目","規定値（\"\"(Null値))",null,1,"法人","任意","法人",1,"Cb",null,1]
[null,33,"BICコード","〇","A","db26",1,33,null,null,"届出","[入力規則]\n8桁\n又は\n11桁","[関数]\n届出書上の該当箇所を転記する。",null,12,"法人","任意","法人",11,"Ca",null,1]
[null,34,"項目変更フラグ（口座管理機関コード）","-","F","db26",1,34,null,null,"規定","届出非表示項目","規定値（\"\"(Null値))",null,1,"法人","任意","法人",1,"Cb",null,1]
[null,35,"口座管理機関コード","〇","A","db26",1,35,null,null,"届出","[入力規則]\n5桁","[関数]\n届出書上の該当箇所を転記する。","コードが0から始まる場合を踏まえるとセルを文字列とする必要があるが、文字列だと「数字のみ」の制御をかけられないため、桁数のみ制御する。",5,"法人","任意","法人",5,9,null,1]
[null,36,"項目変更フラグ（代理人コード）","-","F","db26",1,36,null,null,"規定","届出非表示項目","規定値（\"\"(Null値))",null,1,"法人","任意","法人",1,"Cb",null,1]
[null,37,"代理人コード","〇","A","db26",1,37,null,null,"届出","[入力規則]\n5桁","[関数]\n届出書上の該当箇所を転記する。","コードが0から始まる場合を踏まえるとセルを文字列とする必要があるが、文字列だと「数字のみ」の制御をかけられないため、桁数のみ制御する。",5,"法人","任意","法人",5,9,null,1]
[null,38,"項目変更フラグ（受託会社コード）","-","F","db26",1,38,null,null,"規定","届出非表示項目","規定値（\"\"(Null値))",null,1,"法人","任意","法人",1,"Cb",null,1]
[null,39,"受託会社コード","〇","A","db26",1,39,null,null,"届出","[入力規則]\n5桁","[関数]\n届出書上の該当箇所を転記する。","コードが0から始まる場合を踏まえるとセルを文字列とする必要があるが、文字列だと「数字のみ」の制御をかけられないため、桁数のみ制御する。",5,"法人","任意","法人",5,9,null,1]
[null,40,"項目変更フラグ（統一金融機関コード）","-","F","db26",1,40,null,null,"規定","届出非表示項目","規定値（\"\"(Null値))",null,1,"法人","任意","法人",1,"Cb",null,1]
[null,41,"統一金融機関コード","〇","A","db26",1,41,null,null,"届出","[入力規則]\n4桁","[関数]\n届出書上の該当箇所を転記する。","コードが0から始まる場合を踏まえるとセルを文字列とする必要があるが、文字列だと「数字のみ」の制御をかけられないため、桁数のみ制御する。",4,"法人","任意","法人",4,9,null,1]
[null,42,"項目変更フラグ（利用会社コード）","-","F","db26",1,42,null,null,"規定","届出非表示項目","規定値（\"\"(Null値))",null,1,"法人","任意","法人",1,"Cb",null,1]
[null,43,"利用会社コード","〇","A","db26",1,43,null,null,"届出","[入力規則]\n8桁以内","[関数]\n届出書上の該当箇所を転記する。","コードが0から始まる場合を踏まえるとセルを文字列とする必要があるが、文字列だと「数字のみ」の制御をかけられないため、桁数のみ制御する。",8,"法人","任意","法人",8,"Ca",null,1]
[null,44,"項目変更フラグ（国際機関フラグ）","-","F","db26",1,44,null,null,"規定","届出非表示項目","規定値（\"\"(Null値))",null,1,"法人","任意","法人",1,"Cb",null,1]
[null,45,"国際機関フラグ","〇","A","db26",1,45,0,null,"規定","届出非表示項目","規定値（\"0\")",null,1,"法人","条件必須","法人",1,9,"以下を全て満たす場合、入力必須。\n・更新区分＝「1」(新規)\n・操作区分＝「INS」(登録)",1]
[null,46,"*法人番号","-","N","db26",1,46,null,null,"届出","[入力規則]\n13桁","[関数]\n届出書上の該当箇所を転記する。","・コードが0から始まる場合を踏まえるとセルを文字列とする必要があるが、文字列だと「数字のみ」の制御をかけられないため、桁数のみ制御する。\n・左記番号自体で法人の同定はしない(2018/11/8仮決定)\n次のいずれかの手段で正確性を確認する。\n・法人番号サイトに当該番号を入力、検索し、表示された内容と突合する。\n・同時に提出される証明書類に記載された「会社法人等番号」を元に法人番号を生成し、突合する方法。",13,"法人","対象外",null,null,null,null,1]
[null,47,"*GIIN","-","N","db26",1,47,null,null,"届出","[入力規則]\n6桁,5桁,2桁,3桁で分割入力","[関数]\n届出書上の該当箇所を転記し、カンマで結合する。","・IRSのサイト（https://apps.irs.gov/app/fatcaFfiList/flu.jsf）と突合。",19,"法人","対象外",null,null,null,null,1]
[null,48,"*組織英字略称","-","N","db26",1,48,null,null,"届出","[入力規則]\n28桁","[関数]\n届出書上の該当箇所を転記する。","・DTC宛List「CSD Participant List」用の項目\n・届出書に最大文字数（35文字）や、組織英字名称と同一になっても良い旨等を記載する想定",28,"法人","対象外",null,null,null,null,1]
[null,49,"*代表者役職名","-","N","db26",1,49,{"$f":"INDIRECT(\"その１!F26\")","v":0},null,"届出","[入力規則]\n半角カナ30桁","[関数]\n届出書上の該当箇所を転記する。","・CO上文字数は仮置き",30,"法人","対象外",null,null,null,null,1]
[null,50,"*代表者カナ役職名","-","N","db26",1,50,null,null,"届出","[入力規則]\n30桁","[関数]\n届出書上の該当箇所を転記する。","・CO上文字数は仮置き",30,"法人","対象外",null,null,null,null,1]
[null,51,"*代表者氏名","-","N","db26",1,51,{"$f":"INDIRECT(\"その１!X26\")","v":0},null,"届出","[入力規則]\n30桁","[関数]\n届出書上の該当箇所を転記する。","・CO上文字数は仮置き",30,"法人","対象外",null,null,null,null,1]
[null,52,"*代表者カナ氏名","-","N","db26",1,52,null,null,"届出","[入力規則]\n30桁","[関数]\n届出書上の該当箇所を転記する。","・CO上文字数は仮置き",30,"法人","対象外",null,null,null,null,1]
[null,53,"*在日支店所在地","-","N","db26",1,53,null,null,"届出","[入力規則]\n200桁","[関数]\n届出書上の該当箇所を転記する。","・CO上文字数は仮置き",200,"法人","対象外",null,null,null,null,1]
[null,54,"*設立地（country）","-","N","db26",1,54,null,null,"届出","[入力規則]\n全角50文字以内","[関数]\n届出書上の該当箇所を転記する。",null,50,"法人","対象外",null,null,null,null,1]
[null,55,"*制度外字の有無及び有の場合の置換方法","-","N","db26",1,55,null,null,"届出","[入力規則]\n50桁","[関数]\n届出書上の該当箇所を転記する。","・本項目の記載内容を元に、株通部において手オペを実施する。",50,"法人","対象外",null,null,null,null,1]
[null,56,"*マス管csv投入予定日","-","T","db26",1,56,{"$f":"IF(INDIRECT(\"補記シート!D19\")=\"\",\"\",INDIRECT(\"補記シート!D19\"))","v":""},null,"補記","届出非表示項目","[入力規則]\nYYYY/MM/DD",null,10,"法人","対象外",null,null,null,null,1]
[null,57,"*利用開始年月日（ＣＯ用）","-","N","db26",1,57,{"$f":"IF(I24=\"\",\"\",LEFT(I24,4)&\"/\"&MID(I24,5,2)&\"/\"&RIGHT(I24,2))","v":""},null,"コピー","届出非表示項目","[関数]\n#12の利用開始年月日がNull値でない場合には、#12の利用開始日8桁の適切な位置に/を挿入し、10桁の日付とする。\n#12の利用開始日がNull値の場合には、Null値を設定する。",null,10,"法人","対象外",null,null,null,null,1]
[null,58,"*レコード開始年月日（ＣＯ用）","-","T","db26",1,58,{"$f":"LEFT(I21,4)&\"/\"&MID(I21,5,2)&\"/\"&RIGHT(I21,2)","v":"//"},null,"コピー","届出非表示項目","[関数]\n#9の適用開始日の日付を取得し、YYYY/MM/DD形式で格納する。",null,10,"法人","対象外",null,null,null,null,1]
[null,59,"*レコード終了年月日（ＣＯ用）","-","T","db26",1,59,"2999-12-31",null,"規定","届出非表示項目","規定値（\"2999/12/31\")","変更時には、ツールの機能により本項目を規定値以外の値（直後の最新レコードの適用開始日の前日）に上書きする。",10,"法人","対象外",null,null,null,null,1]
[null,60,"*利用終了年月日（ＣＯ用）","-","T","db26",1,60,"2999-12-31",null,"規定","届出非表示項目","規定値（\"2999/12/31\")",null,10,"法人","対象外",null,null,null,null,1]
[null,{"$f":"ROW()-12","v":61},"COレコード番号",null,"T","db116",1,1,null,null,"規定","届出非表示項目","規定値（\"\"(Null値))","COのDBを上書きする際に、対象レコードを特定するための項目。","-","-","対象外","-","-","-",null,1]
[null,{"$f":"ROW()-12","v":62},"CO登録日時",null,"T","db116",1,2,null,null,"規定","届出非表示項目","規定値（\"\"(Null値))","COレコード番号を生かすために必要なCOデータベースのフィールド枠。","-","-","対象外","-","-","-",null,1]
[null,63,"CO登録者",null,"T","db116",1,3,null,null,"規定","届出非表示項目","規定値（\"\"(Null値))","COレコード番号を生かすために必要なCOデータベースのフィールド枠。","-","-","対象外","-","-","-",null,1]
[null,64,"CO更新日時",null,"T","db116",1,4,null,null,"規定","届出非表示項目","規定値（\"\"(Null値))","COレコード番号を生かすために必要なCOデータベースのフィールド枠。","-","-","対象外","-","-","-",null,1]
[null,65,"CO更新者",null,"T","db116",1,5,null,null,"規定","届出非表示項目","規定値（\"\"(Null値))","COレコード番号を生かすために必要なCOデータベースのフィールド枠。","-","-","対象外","-","-","-",null,1]
[null,66,"データレコード識別区分",null,"T","db116",1,6,690000,null,"規定","届出非表示項目","規定値（\"690000\")",null,6,"株発","必須","株発",6,"9",null,1]
[null,67,"操作区分",null,"T","db116",1,7,"INS",null,"規定","届出非表示項目","規定値（\"INS\")",null,3,"株発","必須","株発",3,"Ca",null,1]
[null,68,"会社コード","〇","T","db116",1,8,{"$f":"IF(INDIRECT(\"補記シート!D20\")=\"\",\"\",INDIRECT(\"補記シート!D20\"))","v":""},null,"補記","届出非表示項目","[入力規則]\n・数字7桁のみを許容\n・下２桁は00のみを許容",null,7,"株発","必須","株発",7,"C",null,1]
[null,69,"適用開始年月日（マス管用）","〇","T","db116",1,9,{"$f":"$I$21","v":""},null,"補記","届出非表示項目","[入力規則]\n数字８桁",null,8,"株発","必須","株発",8,"9",null,1]
[null,70,"更新区分",null,"T","db116",1,10,{"$f":"$I$22","v":1},null,"補記","届出非表示項目","[入力規則]\n数字1桁","「新規」なら1、「それ以外」なら2を設定。",1,"株発","必須","株発",1,"9",null,1]
[null,71,"項目変更フラグ（利用開始年月日）",null,"F","db116",1,11,null,null,"規定","届出非表示項目","規定値（\"\"(Null値))",null,1,"株発","任意","株発",1,"Cb",null,1]
[null,72,"利用開始年月日（マス管用）","〇","A","db116",1,12,{"$f":"$I$24","v":""},null,"補記","[入力規則]\n・数字のみ\n・８桁","[関数]\n届出書上の更新区分が「新規」なら、届出書上の「適用日」を転記する。「新規」以外の場合には、Null値とする。",null,8,"株発","条件必須","株発",8,"9","以下を全て満たす場合、入力必須。\n・更新区分=「1」（新規）\n・操作区分=「INS」（登録)",1]
[null,73,"項目変更フラグ（利用終了年月日）",null,"F","db116",1,13,null,null,"規定","届出非表示項目","規定値（\"\"(Null値))",null,1,"株発","任意","株発",1,"Cb",null,1]
[null,74,"利用終了年月日（マス管用）","〇","A","db116",1,14,29991231,null,"規定","届出非表示項目","規定値（\"29991231\")",null,8,"株発","任意","株発",8,"9",null,1]
[null,75,"項目変更フラグ（新会社コード）",null,"F","db116",1,15,null,null,"規定","届出非表示項目","規定値（\"\"(Null値))",null,1,"株発","任意","株発",1,"Cb",null,1]
[null,76,"新会社コード","〇","A","db116",1,16,null,null,"規定","届出非表示項目","規定値（\"\"(Null値))",null,7,"株発","任意","株発",7,"C",null,1]
[null,77,"項目変更フラグ（ETFJDR発行者コード）",null,"F","db116",1,17,null,null,"規定","届出非表示項目","規定値（\"\"(Null値))",null,1,"株発","任意","株発",1,"Cb",null,1]
[null,78,"ETFJDR発行者コード","〇","A","db116",1,18,null,null,"補記","届出非表示項目","[入力規則]\n数字5桁",null,5,"株発","任意","株発",5,"C",null,1]
[null,79,"項目変更フラグ（株式等発行者商品区分（株式等））",null,"F","db116",1,19,null,null,"規定","届出非表示項目","規定値（\"\"(Null値))",null,1,"株発","任意","株発",1,"Cb",null,1]
[null,80,"株式等発行者商品区分（株式等）","〇","A","db116",1,20,1,null,"補記","届出非表示項目","[入力規則]\n数字1桁\n\"0\"または\"1\"","株式等発行者商品区分（CB） 、株式等発行者商品区分（新株予約権等）のいずれか又は両方が1である場合、本項目は1にしなければならない。",1,"株発","条件必須","株発",7,"C","以下を全て満たす場合、入力必須。\n・更新区分=「1」（新規）\n・操作区分=「INS」（登録)",1]
[null,81,"項目変更フラグ（株式等発行者商品区分（ETFJDR））",null,"F","db116",1,21,null,null,"規定","届出非表示項目","規定値（\"\"(Null値))",null,1,"株発","任意","株発",1,"Cb",null,1]
[null,82,"株式等発行者商品区分（ETFJDR）","〇","A","db116",1,22,0,null,"補記","届出非表示項目","[入力規則]\n数字1桁\n\"0\"または\"1\"",null,1,"株発","条件必須","株発",7,"C","以下を全て満たす場合、入力必須。\n・更新区分=「1」（新規）\n・操作区分=「INS」（登録）",1,"当該法人がETFJDR発行者でなくなった場合（レアケース）には、フラグを0にする（手数料システムに悪影響が及ぶため。）"]
[null,83,"項目変更フラグ（株式等発行者商品区分（CB））",null,"F","db116",1,23,null,null,"規定","届出非表示項目","規定値（\"\"(Null値))",null,1,"株発","任意","株発",1,"Cb",null,1]
[null,84,"株式等発行者商品区分（CB） ","〇","A","db116",1,24,0,null,"補記","届出非表示項目","[入力規則]\n数字1桁\n\"0\"または\"1\"",null,1,"株発","条件必須","株発",1,"9","以下を全て満たす場合、入力必須。\n・更新区分=「1」（新規）\n・操作区分=「INS」（登録）",1]
[null,85,"項目変更フラグ（株式等発行者商品区分（新株予約権等））",null,"F","db116",1,25,null,null,"規定","届出非表示項目","規定値（\"\"(Null値))",null,1,"株発","任意","株発",1,"Cb",null,1]
[null,86,"株式等発行者商品区分（新株予約権等）","〇","A","db116",1,26,1,null,"補記","届出非表示項目","[入力規則]\n数字1桁\n\"0\"または\"1\"",null,1,"株発","条件必須","株発",1,"9","以下を全て満たす場合、入力必須。\n・更新区分=「1」（新規）\n・操作区分=「INS」（登録）",1]
[null,87,"項目変更フラグ（統合ＷＥＢ代行会社・会社コード）",null,"F","db116",1,27,null,null,"規定","届出非表示項目","規定値（\"\"(Null値))",null,1,"株発","任意","株発",1,"Cb",null,1]
[null,88,"統合ＷＥＢ代行会社・会社コード","〇","A","db116",1,28,null,null,"補記","届出非表示項目","[入力規則]\n数字7桁",null,7,"株発","任意","株発",7,"C",null,1]
[null,89,"項目変更フラグ（統合ＷＥＢ代行会社（予備）・会社コード）",null,"F","db116",1,29,null,null,"規定","届出非表示項目","規定値（\"\"(Null値))",null,1,"株発","任意","株発",1,"Cb",null,1]
[null,90,"統合ＷＥＢ代行会社（予備）・会社コード","〇","A","db116",1,30,null,null,"補記","届出非表示項目","[入力規則]\n数字7桁",null,7,"株発","任意","株発",7,"C",null,1]
[null,91,"項目変更フラグ（代理人０１・会社コード）",null,"F","db116",1,31,null,null,"規定","届出非表示項目","規定値（\"\"(Null値))",null,1,"株発","任意","株発",1,"Cb",null,1]
[null,92,"代理人０１・会社コード","〇","A","db116",1,32,null,null,"補記","届出非表示項目","[入力規則]\n数字7桁",null,7,"株発","任意","株発",7,"C",null,1]
[null,93,"項目変更フラグ（代理人０２・会社コード）",null,"F","db116",1,33,null,null,"規定","届出非表示項目","規定値（\"\"(Null値))",null,1,"株発","任意","株発",1,"Cb",null,1]
[null,94,"代理人０２・会社コード","〇","A","db116",1,34,null,null,"補記","届出非表示項目","[入力規則]\n数字7桁",null,7,"株発","任意","株発",7,"C",null,1]
[null,95,"項目変更フラグ（代理人０３・会社コード）",null,"F","db116",1,35,null,null,"規定","届出非表示項目","規定値（\"\"(Null値))",null,1,"株発","任意","株発",1,"Cb",null,1]
[null,96,"代理人０３・会社コード","〇","A","db116",1,36,null,null,"補記","届出非表示項目","[入力規則]\n数字7桁",null,7,"株発","任意","株発",7,"C",null,1]
[null,97,"項目変更フラグ（代理人０４・会社コード）",null,"F","db116",1,37,null,null,"規定","届出非表示項目","規定値（\"\"(Null値))",null,1,"株発","任意","株発",1,"Cb",null,1]
[null,98,"代理人０４・会社コード","〇","A","db116",1,38,null,null,"補記","届出非表示項目","[入力規則]\n数字7桁",null,7,"株発","任意","株発",7,"C",null,1]
[null,99,"項目変更フラグ（代理人０５・会社コード）",null,"F","db116",1,39,null,null,"規定","届出非表示項目","規定値（\"\"(Null値))",null,1,"株発","任意","株発",1,"Cb",null,1]
[null,100,"代理人０５・会社コード","〇","A","db116",1,40,null,null,"補記","届出非表示項目","[入力規則]\n数字7桁",null,7,"株発","任意","株発",7,"C",null,1]
[null,101,"項目変更フラグ（代理人０６・会社コード）",null,"F","db116",1,41,null,null,"規定","届出非表示項目","規定値（\"\"(Null値))",null,1,"株発","任意","株発",1,"Cb",null,1]
[null,102,"代理人０６・会社コード","〇","A","db116",1,42,null,null,"補記","届出非表示項目","[入力規則]\n数字7桁",null,7,"株発","任意","株発",7,"C",null,1]
[null,103,"項目変更フラグ（代理人０７・会社コード）",null,"F","db116",1,43,null,null,"規定","届出非表示項目","規定値（\"\"(Null値))",null,1,"株発","任意","株発",1,"Cb",null,1]
[null,104,"代理人０７・会社コード","〇","A","db116",1,44,null,null,"補記","届出非表示項目","[入力規則]\n数字7桁",null,7,"株発","任意","株発",7,"C",null,1]
[null,105,"項目変更フラグ（代理人０８・会社コード）",null,"F","db116",1,45,null,null,"規定","届出非表示項目","規定値（\"\"(Null値))",null,1,"株発","任意","株発",1,"Cb",null,1]
[null,106,"代理人０８・会社コード","〇","A","db116",1,46,null,null,"補記","届出非表示項目","[入力規則]\n数字7桁",null,7,"株発","任意","株発",7,"C",null,1]
[null,107,"項目変更フラグ（代理人０９・会社コード）",null,"F","db116",1,47,null,null,"規定","届出非表示項目","規定値（\"\"(Null値))",null,1,"株発","任意","株発",1,"Cb",null,1]
[null,108,"代理人０９・会社コード","〇","A","db116",1,48,null,null,"補記","届出非表示項目","[入力規則]\n数字7桁",null,7,"株発","任意","株発",7,"C",null,1]
[null,109,"項目変更フラグ（代理人１０・会社コード）",null,"F","db116",1,49,null,null,"規定","届出非表示項目","規定値（\"\"(Null値))",null,1,"株発","任意","株発",1,"Cb",null,1]
[null,110,"代理人１０・会社コード","〇","A","db116",1,50,null,null,"補記","届出非表示項目","[入力規則]\n数字7桁",null,7,"株発","任意","株発",7,"C",null,1]
[null,111,"*組織名称",null,"T","db116",1,51,null,null,"規定","届出非表示項目","規定値（\"\"(Null値))",null,"ルックアップ","株発",null,null,null,null,null,1]
[null,112,"*選任する代理人名称1",null,"T","db116",1,52,null,null,"規定","届出非表示項目","規定値（\"\"(Null値))",null,"ルックアップ","株発",null,null,null,null,null,1]
[null,113,"*選任する代理人名称2",null,"T","db116",1,53,null,null,"規定","届出非表示項目","規定値（\"\"(Null値))",null,"ルックアップ","株発",null,null,null,null,null,1]
[null,114,"*選任する代理人名称3",null,"T","db116",1,54,null,null,"規定","届出非表示項目","規定値（\"\"(Null値))",null,"ルックアップ","株発",null,null,null,null,null,1]
[null,115,"*選任する代理人名称4",null,"T","db116",1,55,null,null,"規定","届出非表示項目","規定値（\"\"(Null値))",null,"ルックアップ","株発",null,null,null,null,null,1]
[null,116,"*選任する代理人名称5",null,"T","db116",1,56,null,null,"規定","届出非表示項目","規定値（\"\"(Null値))",null,"ルックアップ","株発",null,null,null,null,null,1]
[null,117,"*選任する代理人名称6",null,"T","db116",1,57,null,null,"規定","届出非表示項目","規定値（\"\"(Null値))",null,"ルックアップ","株発",null,null,null,null,null,1]
[null,118,"*選任する代理人名称7",null,"T","db116",1,58,null,null,"規定","届出非表示項目","規定値（\"\"(Null値))",null,"ルックアップ","株発",null,null,null,null,null,1]
[null,119,"*選任する代理人名称8",null,"T","db116",1,59,null,null,"規定","届出非表示項目","規定値（\"\"(Null値))",null,"ルックアップ","株発",null,null,null,null,null,1]
[null,120,"*選任する代理人名称9",null,"T","db116",1,60,null,null,"規定","届出非表示項目","規定値（\"\"(Null値))",null,"ルックアップ","株発",null,null,null,null,null,1]
[null,121,"*選任する代理人名称10",null,"T","db116",1,61,null,null,"規定","届出非表示項目","規定値（\"\"(Null値))",null,"ルックアップ","株発",null,null,null,null,null,1]
[null,122,"*選任する代理人コード1",null,"T","db116",1,62,null,null,"届出","[入力規則]\n数字5桁","[関数]\n届出書の該当箇所を転記する。",null,5,"株発",null,null,null,null,null,1]
[null,123,"*選任する代理人コード2",null,"T","db116",1,63,null,null,"届出","[入力規則]\n数字5桁","[関数]\n届出書の該当箇所を転記する。",null,5,"株発",null,null,null,null,null,1]
[null,124,"*選任する代理人コード3",null,"T","db116",1,64,null,null,"届出","[入力規則]\n数字5桁","[関数]\n届出書の該当箇所を転記する。",null,5,"株発",null,null,null,null,null,1]
[null,125,"*選任する代理人コード4",null,"T","db116",1,65,null,null,"届出","[入力規則]\n数字5桁","[関数]\n届出書の該当箇所を転記する。",null,5,"株発",null,null,null,null,null,1]
[null,{"$f":"ROW()-12","v":126},"*選任する代理人コード5",null,"T","db116",1,66,null,null,"届出","[入力規則]\n数字5桁","[関数]\n届出書の該当箇所を転記する。",null,5,"株発",null,null,null,null,null,1]
[null,127,"*選任する代理人コード6",null,"T","db116",1,67,null,null,"届出","[入力規則]\n数字5桁","[関数]\n届出書の該当箇所を転記する。",null,5,"株発",null,null,null,null,null,1]
[null,128,"*選任する代理人コード7",null,"T","db116",1,68,null,null,"届出","[入力規則]\n数字5桁","[関数]\n届出書の該当箇所を転記する。",null,5,"株発",null,null,null,null,null,1]
[null,129,"*選任する代理人コード8",null,"T","db116",1,69,null,null,"届出","[入力規則]\n数字5桁","[関数]\n届出書の該当箇所を転記する。",null,5,"株発",null,null,null,null,null,1]
[null,130,"*選任する代理人コード9",null,"T","db116",1,70,null,null,"届出","[入力規則]\n数字5桁","[関数]\n届出書の該当箇所を転記する。",null,5,"株発",null,null,null,null,null,1]
[null,131,"*選任する代理人コード10",null,"T","db116",1,71,null,null,"届出","[入力規則]\n数字5桁","[関数]\n届出書の該当箇所を転記する。",null,5,"株発",null,null,null,null,null,1]
[null,132,"*マス管csv投入予定日",null,"T","db116",1,72,{"$f":"IF(INDIRECT(\"補記シート!D21\")=\"\",\"\",INDIRECT(\"補記シート!D21\"))","v":""},null,"補記","届出非表示項目","[入力規則]\nYYYY/MM/DD",null,10,"株発",null,null,null,null,null,1]
[null,133,"*利用開始年月日",null,"N","db116",1,73,{"$f":"$I$69","v":""},null,"コピー","届出非表示項目","[関数]\n#XXの利用開始年月日がNull値でない場合には、#XXの利用開始日8桁の適切な位置に/を挿入し、10桁の日付とする。\n#XXの利用開始日がNull値の場合には、Null値を設定する。",null,10,"株発",null,null,null,null,null,1]
[null,134,"*レコード開始年月日",null,"T","db116",1,74,{"$f":"$I$70","v":"//"},null,"コピー","届出非表示項目","[関数]\n#XXXの適用開始日の日付を取得し、YYYY/MM/DD形式で格納する。",null,10,"株発",null,null,null,null,null,1]
[null,135,"*レコード終了年月日",null,"T","db116",1,75,"2999-12-31",null,"規定","届出非表示項目","規定値（\"2999/12/31\")",null,10,"株発",null,null,null,null,null,1]
[null,136,"*利用終了年月日",null,"T","db116",1,76,"2999-12-31",null,"規定","届出非表示項目","規定値（\"2999/12/31\")",null,10,"株発",null,null,null,null,null,1]
[null,137,"以下余白","以下余白","以下余白","以下余白","以下余白","以下余白","以下余白",null,"以下余白","以下余白","以下余白",null,"以下余白","以下余白","以下余白","以下余白","以下余白","以下余白","以下余白","以下余白"]
[null,138]

{"sheet":"補記シート","index":11,"n_rows":218,"n_cols":11,"rows_kept":218,"cut":false,"hidden":true,"merged":[]}
[]
[]
[]
[]
[]
[]
[]
[]
[]
[]
[]
["補記シート"]
[]
[]
[]
[]
["項目名","登録先DB名称","登録先DB\nコード","参加室補記データ","入力する値の説明",null,"ＳＢ機構加入者","シス投入データ",null,"項目名","他部署等補記データ"]
["会社コード","法人","db26",null,"7桁で記載、下２桁は00のみを許容",null,"会社コード"]
["*マス管csv投入予定日","法人","db26",null,"YYYY/MM/DD形式で記載",null,"適用開始年月日"]
["会社コード","株発行者","db116",null,"7桁で記載、下２桁は00のみを許容",null,"統合ＷＥＢ代行会社会社コード"]
["*マス管csv投入予定日","株発行者","db116",null,"YYYY/MM/DD形式で記載",null,"統合ＷＥＢ代行会社予備会社コード"]
[]
[]
[null,null,null,null,null,null,"ＣＰ機構加入者","シス投入データ"]
[null,null,null,null,null,null,"会社コード"]
[null,null,null,null,null,null,"適用開始年月日"]
[null,null,null,null,null,null,"統合ＷＥＢ代行会社会社コード"]
[null,null,null,null,null,null,"統合ＷＥＢ代行会社予備会社コード"]
[]
[]
[null,null,null,null,null,null,"投信機構加入者","シス投入データ"]
[null,null,null,null,null,null,"会社コード"]
[null,null,null,null,null,null,"適用開始年月日"]
[null,null,null,null,null,null,"銘柄情報計算会社会社コード"]
[]
[]
[null,null,null,null,null,null,"口座系","シス投入データ"]
[null,null,null,null,null,null,"会社コード"]
[null,null,null,null,null,null,"口座系番号"]
[null,null,null,null,null,null,"適用開始年月日"]
[null,null,null,null,null,null,"統合ＷＥＢ代行会社会社コード"]
[null,null,null,null,null,null,"統合ＷＥＢ代行会社予備会社コード"]
[]
[]
[null,null,null,null,null,null,"株式等口座","シス投入データ"]
[null,null,null,null,null,null,"会社コード"]
[null,null,null,null,null,null,"区分口座コード"]
[null,null,null,null,null,null,"適用開始年月日"]
[null,null,null,null,null,null,"接続会社利用フラグ"]
[null,null,null,null,null,null,"ＭＪ夜間バッチ結果配信フラグ"]
[null,null,null,null,null,null,"口座振替計算会社会社コード"]
[null,null,null,null,null,null,"株主通知計算会社会社コード"]
[null,null,null,null,null,null,"元利金計算会社会社コード"]
[null,null,null,null,null,null,"統合ＷＥＢ代行会社会社コード"]
[null,null,null,null,null,null,"統合ＷＥＢ代行会社予備会社コード"]
[null,null,null,null,null,null,"加入者ＷＥＢ代行会社会社コード"]
[]
[]
[null,null,null,null,null,null,"外株口座","シス投入データ"]
[null,null,null,null,null,null,"会社コード"]
[null,null,null,null,null,null,"区分口座コード"]
[null,null,null,null,null,null,"適用開始年月日"]
[null,null,null,null,null,null,"計算会社会社コード"]
[]
[]
[null,null,null,null,null,null,"ＳＢ口座","シス投入データ"]
[null,null,null,null,null,null,"会社コード"]
[null,null,null,null,null,null,"区分口座コード"]
[null,null,null,null,null,null,"適用開始年月日"]
[null,null,null,null,null,null,"接続会社利用フラグ"]
[null,null,null,null,null,null,"ＭＪ夜間バッチ結果配信フラグ"]
[null,null,null,null,null,null,"口座振替計算会社会社コード"]
[null,null,null,null,null,null,"元利金計算会社会社コード"]
[null,null,null,null,null,null,"銘柄情報計算会社会社コード"]
[]
[]
[null,null,null,null,null,null,"ＣＰ口座","シス投入データ"]
[null,null,null,null,null,null,"会社コード"]
[null,null,null,null,null,null,"区分口座コード"]
[null,null,null,null,null,null,"適用開始年月日"]
[null,null,null,null,null,null,"接続会社利用フラグ"]
[null,null,null,null,null,null,"ＭＪ夜間バッチ結果配信フラグ"]
[null,null,null,null,null,null,"計算会社会社コード"]
[]
[]
[null,null,null,null,null,null,"投信口座","シス投入データ"]
[null,null,null,null,null,null,"会社コード"]
[null,null,null,null,null,null,"区分口座コード"]
[null,null,null,null,null,null,"適用開始年月日"]
[null,null,null,null,null,null,"接続会社利用フラグ"]
[null,null,null,null,null,null,"ＭＪ夜間バッチ結果配信フラグ"]
[null,null,null,null,null,null,"口座振替計算会社会社コード"]
[null,null,null,null,null,null,"統合ＷＥＢ代行会社会社コード"]
[null,null,null,null,null,null,"統合ＷＥＢ代行会社予備会社コード"]
[]
[]
[null,null,null,null,null,null,"株式等代理人","シス投入データ"]
[null,null,null,null,null,null,"会社コード"]
[null,null,null,null,null,null,"適用開始年月日"]
[null,null,null,null,null,null,"接続会社利用フラグ"]
[null,null,null,null,null,null,"口座振替計算会社会社コード"]
[null,null,null,null,null,null,"社債権者計算会社会社コード"]
[null,null,null,null,null,null,"元利金計算会社会社コード"]
[null,null,null,null,null,null,"統合ＷＥＢ代行会社会社コード"]
[null,null,null,null,null,null,"統合ＷＥＢ代行会社予備会社コード"]
[]
[]
[null,null,null,null,null,null,"ＳＢ代理人","シス投入データ"]
[null,null,null,null,null,null,"会社コード"]
[null,null,null,null,null,null,"適用開始年月日"]
[null,null,null,null,null,null,"接続会社利用フラグ"]
[null,null,null,null,null,null,"元利金計算会社会社コード"]
[null,null,null,null,null,null,"銘柄情報計算会社会社コード"]
[null,null,null,null,null,null,"統合ＷＥＢ代行会社会社コード"]
[null,null,null,null,null,null,"統合ＷＥＢ代行会社予備会社コード"]
[]
[]
[null,null,null,null,null,null,"ＣＰ代理人","シス投入データ"]
[null,null,null,null,null,null,"会社コード"]
[null,null,null,null,null,null,"適用開始年月日"]
[null,null,null,null,null,null,"接続会社利用フラグ"]
[]
[]
[null,null,null,null,null,null,"株式等資金決済会社","シス投入データ"]
[null,null,null,null,null,null,"会社コード"]
[null,null,null,null,null,null,"適用開始年月日"]
[null,null,null,null,null,null,"資金決済会社用接続会社利用フラグ"]
[null,null,null,null,null,null,"計算会社会社コード"]
[null,null,null,null,null,null,"資金決済会社用統合ＷＥＢ代行会社会社コード"]
[null,null,null,null,null,null,"資金決済会社用統合ＷＥＢ代行会社予備会社コード"]
[null,null,null,null,null,null,"払込取扱銀行用接続会社利用フラグ"]
[null,null,null,null,null,null,"払込取扱銀行用統合ＷＥＢ代行会社会社コード"]
[null,null,null,null,null,null,"払込取扱銀行用統合ＷＥＢ代行会社予備会社コード"]
[]
[]
[null,null,null,null,null,null,"ＳＢ資金決済会社","シス投入データ"]
[null,null,null,null,null,null,"会社コード"]
[null,null,null,null,null,null,"適用開始年月日"]
[null,null,null,null,null,null,"接続会社利用フラグ"]
[null,null,null,null,null,null,"計算会社会社コード"]
[]
[]
[null,null,null,null,null,null,"ＣＰ資金決済会社","シス投入データ"]
[null,null,null,null,null,null,"会社コード"]
[null,null,null,null,null,null,"適用開始年月日"]
[null,null,null,null,null,null,"接続会社利用フラグ"]
[]
[]
[null,null,null,null,null,null,"投信資金決済会社","シス投入データ"]
[null,null,null,null,null,null,"会社コード"]
[null,null,null,null,null,null,"適用開始年月日"]
[null,null,null,null,null,null,"接続会社利用フラグ"]
[null,null,null,null,null,null,"統合ＷＥＢ代行会社会社コード"]
[null,null,null,null,null,null,"統合ＷＥＢ代行会社予備会社コード"]
[]
[]
[null,null,null,null,null,null,"投信受託会社","シス投入データ"]
[null,null,null,null,null,null,"会社コード"]
[null,null,null,null,null,null,"適用開始年月日"]
[null,null,null,null,null,null,"接続会社利用フラグ"]
[null,null,null,null,null,null,"ＭＪ夜間バッチ結果配信フラグ"]
[null,null,null,null,null,null,"計算会社会社コード"]
[null,null,null,null,null,null,"統合ＷＥＢ代行会社会社コード"]
[null,null,null,null,null,null,"統合ＷＥＢ代行会社予備会社コード"]
[]
[]
[null,null,null,null,null,null,"株式等発行者","シス投入データ"]
[null,null,null,null,null,null,"会社コード"]
[null,null,null,null,null,null,"適用開始年月日"]
[null,null,null,null,null,null,"統合ＷＥＢ代行会社会社コード"]
[null,null,null,null,null,null,"統合ＷＥＢ代行会社予備会社コード"]
[]
[]
[null,null,null,null,null,null,"ＣＰ発行者","シス投入データ"]
[null,null,null,null,null,null,"会社コード"]
[null,null,null,null,null,null,"適用開始年月日"]
[null,null,null,null,null,null,"接続会社利用フラグ"]
[]
[]
[null,null,null,null,null,null,"投信発行者","シス投入データ"]
[null,null,null,null,null,null,"会社コード"]
[null,null,null,null,null,null,"適用開始年月日"]
[null,null,null,null,null,null,"接続会社利用フラグ"]
[null,null,null,null,null,null,"ＭＪ夜間バッチ結果配信フラグ"]
[null,null,null,null,null,null,"計算会社会社コード"]
[null,null,null,null,null,null,"統合ＷＥＢ代行会社会社コード"]
[null,null,null,null,null,null,"統合ＷＥＢ代行会社予備会社コード"]
[]
[]
[null,null,null,null,null,null,"ＴＡ","シス投入データ"]
[null,null,null,null,null,null,"会社コード"]
[null,null,null,null,null,null,"適用開始年月日"]
[null,null,null,null,null,null,"接続会社利用フラグ"]
[null,null,null,null,null,null,"計算会社会社コード"]
[null,null,null,null,null,null,"統合ＷＥＢ代行会社会社コード"]
[null,null,null,null,null,null,"統合ＷＥＢ代行会社予備会社コード"]
[]
[]
[null,null,null,null,null,null,"株式事務取扱機関","シス投入データ"]
[null,null,null,null,null,null,"会社コード"]
[null,null,null,null,null,null,"適用開始年月日"]
[null,null,null,null,null,null,"計算会社会社コード"]
[]
[]
[null,null,null,null,null,null,"決済照合利用会社","シス投入データ"]
[null,null,null,null,null,null,"会社コード"]
[null,null,null,null,null,null,"適用開始年月日"]
[null,null,null,null,null,null,"国内取引株式・ＣＢ接続会社会社コード"]
[null,null,null,null,null,null,"国内取引株式貸借接続会社会社コード"]
[null,null,null,null,null,null,"国内取引国債接続会社会社コード"]
[null,null,null,null,null,null,"国内取引一般債接続会社会社コード"]
[null,null,null,null,null,null,"国内取引短期社債接続会社会社コード"]
[null,null,null,null,null,null,"国内取引先物・オプション接続会社会社コード"]
[null,null,null,null,null,null,"国内取引投資信託接続会社会社コード"]
[null,null,null,null,null,null,"非居住者取引株式・ＣＢ接続会社会社コード"]
[null,null,null,null,null,null,"非居住者取引国債接続会社会社コード"]
[null,null,null,null,null,null,"非居住者取引一般債接続会社会社コード"]
[null,null,null,null,null,null,"非居住者取引短期社債接続会社会社コード"]

{"sheet":"プルダウン","index":12,"n_rows":47,"n_cols":2,"rows_kept":47,"cut":false,"hidden":true,"merged":[]}
["　"]
["□"]
["■"]
[]
["　"]
["○"]
[]
[]
[]
[]
["株式会社ＳＭＢＣ信託銀行"]
["株式会社アイ・アールジャパン"]
["東京証券代行株式会社"]
["日本証券代行株式会社"]
["みずほ信託銀行株式会社"]
["三井住友信託銀行株式会社"]
["三菱ＵＦＪ信託銀行株式会社"]
[]
[]
["　"]
["普通株式"]
["種類株式"]
[]
[]
["　"]
["半年"]
["１年"]
[]
[]
[]
["【確認書】"]
["●新規上場用"]
["本文1","　株式等振替制度における　　　　　　　　　　　　　　　　　　　　　　　　　　　（以下「甲」という。）投資口の取扱開始に際しては、甲の投資信託及び投資法人に関する法律第７７条の３に規定する基準日又は事業年度の開始日から６か月後の日等が、新規記録日の７営業日前の日から前営業日（金融商品取引所への上場予定日の８営業日前の日から２営業日前の日）までの間に到来することから、株式会社証券保管振替機構（以下「機構」という。）の定める株式等振替制度に係る業務処理要領における「新規上場時の取扱開始の標準日程」とは異なる日程での取扱いとすることを要望します。"]
["本文2","　このため、甲、甲が選任した投資主名簿管理人（以下「乙」という。）及び引受主幹事証券会社（以下「丙」という。）は、下記の事項を行うことを確認します。"]
["確認1","甲は、甲が　　　　　　　　　　　付で機構に提出した「株式等振替制度参加に係る届出書（その２）」に記載の事務上の口座通知取次ぎ受付締切日の前日までに、甲の投資主が投資主名簿の名義書換を極力完了させるよう、あらかじめ、甲の投資主と十分に調整すること。"]
["確認2","丙は、１．に定める甲が行う甲の投資主との調整に協力すること。"]
["確認3","１．に定める投資主との調整を行ってもなお、甲又は乙が甲の投資主から投資主名簿の名義書換請求を受けた場合は、甲は、乙に対して、甲が乙を通じて機構に通知する社債、株式等の振替に関する法律第２２８条において準用する同法第１３０条第１項に基づく新規記録通知及び甲が行う同法第１３１条第３項に基づく特別口座の開設等において、当該名義書換請求の内容を適切に反映した業務処理を行うよう指示すること。"]
["確認4","乙は、甲から３．に定める指示を受けた場合には、当該業務処理を適切に行うこと。"]
["注記1","代表者の役職名及び氏名を御記入のうえ、会社の実印（商業登記法第２０条第１項の規定により登記所に提出された印鑑）を捺印してください。"]
["注記2","発行者から上記３．の指示を受け、当該業務処理を行うこととなる会社名を記載してください。投資主名簿管理人以外が当該業務処理を行う場合には、本文中「投資主名簿管理人」とあるのは、当該業務処理を行う会社を指すものとします。"]
["注記3"]
[]
["●テクニカル上場用"]
["本文1","　株式等振替制度における　　　　　　　　　　　　　　　　　　　　　　　　　　　（以下「甲」という。）投資口の取扱開始に際しては、甲の投資信託及び投資法人に関する法律第７７条の３に規定する基準日又は事業年度の開始日から６か月後の日等が、金融商品取引所への上場予定日の前日に到来することから、株式会社証券保管振替機構（以下「機構」という。）の定める株式等振替制度に係る業務処理要領における別紙２－２－３「吸収合併②」とは異なる日程での取扱いとすることを要望します。"]
["本文2","　このため、甲及び甲が選任した投資主名簿管理人（以下「乙」という。）は、下記の事項を行うことを確認します。"]
["確認4","乙は、甲から２．に定める指示を受けた場合には、当該業務処理を適切に行うこと。"]
["注記2","発行者から上記２．の指示を受け、当該業務処理を行うこととなる会社名を記載してください。投資主名簿管理人以外が当該業務処理を行う場合には、本文中「投資主名簿管理人」とあるのは、当該業務処理を行う会社を指すものとします。"]